{"text_format":"3","workbook":"xlsx","n_sheets":2,"sheets":["Sākums","Gada kalendārs"],"not_rendered":{"images":4,"defined_names":13},"read":"whole","date_system":"1900"}

{"sheet":"Sākums","index":0,"n_rows":7,"n_cols":2,"rows_kept":7}
[null,"PAR ŠO VEIDNI"]
[null,"Izmantojiet šo veidni, lai izveidotu mazu, personisku uzņēmuma kalendāru jebkuram gadam."]
[null,"Ievadiet uzņēmuma nosaukumu un kontaktinformāciju un pievienojiet uzņēmuma logotipu."]
[null,"Atlasiet gadu un ievadiet svarīgākos datumus un pasākumus."]
[null,"Piezīme. "]
[null,"Papildu norādījumi ir sniegti darblapas GADA KALENDĀRS kolonnā A. Šis teksts ir paslēpts ar nolūku. Lai tekstu noņemtu, atlasiet kolonnu A, pēc tam atlasiet DZĒST. "]
[null,"Lai iegūtu papildinformāciju par tabulām, tabulā nospiediet taustiņu SHIFT un pēc tam F10, atlasiet opciju TABULA un pēc tam atlasiet ALTERNATĪVAIS TEKSTS."]

{"sheet":"Gada kalendārs","index":1,"n_rows":55,"n_cols":21,"rows_kept":55,"merged":[[0,2,0,5],[2,2,2,8],[2,10,2,16],[11,2,11,8],[11,10,11,16],[20,2,20,8],[20,10,20,16],[29,2,29,8],[29,10,29,16],[38,2,38,8],[38,10,38,16],[47,2,47,8],[47,10,47,16],[50,20,54,20]]}
["Šajā darblapā izveidojiet mazu uzņēmuma kalendāru jebkuram gadam. Šīs kolonnas šūnās ir noderīgi norādījumi par to, kā lietot šo darblapu. Šūnā pa labi atlasiet skaitītājpogu, lai mainītu gadu šūnā C1. Šūnā U1 ir svarīgāko datumu etiķete",null,2022,{"$nulls":17},"SVARĪGI DATUMI"]
["Šūnā pa labi ir padoms","Izmantojiet skaitītājpogu, lai mainītu kalendāra gadu"]
["Atlasītā gada kalendārs ir šūnu diapazonā C3–Q55, janvāra kalendārs ir šūnu diapazonā C4–I10, bet februāra kalendārs — šūnu diapazonā K4–Q10. Janvāra etiķete ir šūnā C3, bet februāra etiķete — šūnā K3. Šūnu diapazonā U3–U42 ievadiet svarīgākos datumus un pasākumus",null,"JANVĀRIS",{"$nulls":7},"FEBRUĀRIS",{"$nulls":9},"1. JANVĀRIS"]
["Janvāra kalendāra tabula ir šūnu diapazonā C4–I10, bet februāra kalendāra tabula — šūnu diapazonā K4 to Q10. Nākamais norādījums ir šūnā A12",null,"PR","OT","TR","CE","PK","SE","SV",null,"PR","OT","TR","CE","PK","SE","SV",{"$nulls":3},"JAUNGADA DIENA"]
[null,null,{"$f":"IF(DAY(Janv_sv1)=1,\"\",IF(AND(YEAR(Janv_sv1+1)=Kalendārais_gads,MONTH(Janv_sv1+1)=1),Janv_sv1+1,\"\"))","v":""},{"$f":"IF(DAY(Janv_sv1)=1,\"\",IF(AND(YEAR(Janv_sv1+2)=Kalendārais_gads,MONTH(Janv_sv1+2)=1),Janv_sv1+2,\"\"))","v":""},{"$f":"IF(DAY(Janv_sv1)=1,\"\",IF(AND(YEAR(Janv_sv1+3)=Kalendārais_gads,MONTH(Janv_sv1+3)=1),Janv_sv1+3,\"\"))","v":""},{"$f":"IF(DAY(Janv_sv1)=1,\"\",IF(AND(YEAR(Janv_sv1+4)=Kalendārais_gads,MONTH(Janv_sv1+4)=1),Janv_sv1+4,\"\"))","v":""},{"$f":"IF(DAY(Janv_sv1)=1,\"\",IF(AND(YEAR(Janv_sv1+5)=Kalendārais_gads,MONTH(Janv_sv1+5)=1),Janv_sv1+5,\"\"))","v":""},{"$f":"IF(DAY(Janv_sv1)=1,\"\",IF(AND(YEAR(Janv_sv1+6)=Kalendārais_gads,MONTH(Janv_sv1+6)=1),Janv_sv1+6,\"\"))","v":"2022-01-01"},{"$f":"IF(DAY(Janv_sv1)=1,IF(AND(YEAR(Janv_sv1)=Kalendārais_gads,MONTH(Janv_sv1)=1),Janv_sv1,\"\"),IF(AND(YEAR(Janv_sv1+7)=Kalendārais_gads,MONTH(Janv_sv1+7)=1),Janv_sv1+7,\"\"))","v":"2022-01-02"},null,{"$f":"IF(DAY(Feb_sv1)=1,\"\",IF(AND(YEAR(Feb_sv1+1)=Kalendārais_gads,MONTH(Feb_sv1+1)=2),Feb_sv1+1,\"\"))","v":""},{"$f":"IF(DAY(Feb_sv1)=1,\"\",IF(AND(YEAR(Feb_sv1+2)=Kalendārais_gads,MONTH(Feb_sv1+2)=2),Feb_sv1+2,\"\"))","v":"2022-02-01"},{"$f":"IF(DAY(Feb_sv1)=1,\"\",IF(AND(YEAR(Feb_sv1+3)=Kalendārais_gads,MONTH(Feb_sv1+3)=2),Feb_sv1+3,\"\"))","v":"2022-02-02"},{"$f":"IF(DAY(Feb_sv1)=1,\"\",IF(AND(YEAR(Feb_sv1+4)=Kalendārais_gads,MONTH(Feb_sv1+4)=2),Feb_sv1+4,\"\"))","v":"2022-02-03"},{"$f":"IF(DAY(Feb_sv1)=1,\"\",IF(AND(YEAR(Feb_sv1+5)=Kalendārais_gads,MONTH(Feb_sv1+5)=2),Feb_sv1+5,\"\"))","v":"2022-02-04"},{"$f":"IF(DAY(Feb_sv1)=1,\"\",IF(AND(YEAR(Feb_sv1+6)=Kalendārais_gads,MONTH(Feb_sv1+6)=2),Feb_sv1+6,\"\"))","v":"2022-02-05"},{"$f":"IF(DAY(Feb_sv1)=1,IF(AND(YEAR(Feb_sv1)=Kalendārais_gads,MONTH(Feb_sv1)=2),Feb_sv1,\"\"),IF(AND(YEAR(Feb_sv1+7)=Kalendārais_gads,MONTH(Feb_sv1+7)=2),Feb_sv1+7,\"\"))","v":"2022-02-06"}]
[null,null,{"$f":"IF(DAY(Janv_sv1)=1,IF(AND(YEAR(Janv_sv1+1)=Kalendārais_gads,MONTH(Janv_sv1+1)=1),Janv_sv1+1,\"\"),IF(AND(YEAR(Janv_sv1+8)=Kalendārais_gads,MONTH(Janv_sv1+8)=1),Janv_sv1+8,\"\"))","v":"2022-01-03"},{"$f":"IF(DAY(Janv_sv1)=1,IF(AND(YEAR(Janv_sv1+2)=Kalendārais_gads,MONTH(Janv_sv1+2)=1),Janv_sv1+2,\"\"),IF(AND(YEAR(Janv_sv1+9)=Kalendārais_gads,MONTH(Janv_sv1+9)=1),Janv_sv1+9,\"\"))","v":"2022-01-04"},{"$f":"IF(DAY(Janv_sv1)=1,IF(AND(YEAR(Janv_sv1+3)=Kalendārais_gads,MONTH(Janv_sv1+3)=1),Janv_sv1+3,\"\"),IF(AND(YEAR(Janv_sv1+10)=Kalendārais_gads,MONTH(Janv_sv1+10)=1),Janv_sv1+10,\"\"))","v":"2022-01-05"},{"$f":"IF(DAY(Janv_sv1)=1,IF(AND(YEAR(Janv_sv1+4)=Kalendārais_gads,MONTH(Janv_sv1+4)=1),Janv_sv1+4,\"\"),IF(AND(YEAR(Janv_sv1+11)=Kalendārais_gads,MONTH(Janv_sv1+11)=1),Janv_sv1+11,\"\"))","v":"2022-01-06"},{"$f":"IF(DAY(Janv_sv1)=1,IF(AND(YEAR(Janv_sv1+5)=Kalendārais_gads,MONTH(Janv_sv1+5)=1),Janv_sv1+5,\"\"),IF(AND(YEAR(Janv_sv1+12)=Kalendārais_gads,MONTH(Janv_sv1+12)=1),Janv_sv1+12,\"\"))","v":"2022-01-07"},{"$f":"IF(DAY(Janv_sv1)=1,IF(AND(YEAR(Janv_sv1+6)=Kalendārais_gads,MONTH(Janv_sv1+6)=1),Janv_sv1+6,\"\"),IF(AND(YEAR(Janv_sv1+13)=Kalendārais_gads,MONTH(Janv_sv1+13)=1),Janv_sv1+13,\"\"))","v":"2022-01-08"},{"$f":"IF(DAY(Janv_sv1)=1,IF(AND(YEAR(Janv_sv1+7)=Kalendārais_gads,MONTH(Janv_sv1+7)=1),Janv_sv1+7,\"\"),IF(AND(YEAR(Janv_sv1+14)=Kalendārais_gads,MONTH(Janv_sv1+14)=1),Janv_sv1+14,\"\"))","v":"2022-01-09"},null,{"$f":"IF(DAY(Feb_sv1)=1,IF(AND(YEAR(Feb_sv1+1)=Kalendārais_gads,MONTH(Feb_sv1+1)=2),Feb_sv1+1,\"\"),IF(AND(YEAR(Feb_sv1+8)=Kalendārais_gads,MONTH(Feb_sv1+8)=2),Feb_sv1+8,\"\"))","v":"2022-02-07"},{"$f":"IF(DAY(Feb_sv1)=1,IF(AND(YEAR(Feb_sv1+2)=Kalendārais_gads,MONTH(Feb_sv1+2)=2),Feb_sv1+2,\"\"),IF(AND(YEAR(Feb_sv1+9)=Kalendārais_gads,MONTH(Feb_sv1+9)=2),Feb_sv1+9,\"\"))","v":"2022-02-08"},{"$f":"IF(DAY(Feb_sv1)=1,IF(AND(YEAR(Feb_sv1+3)=Kalendārais_gads,MONTH(Feb_sv1+3)=2),Feb_sv1+3,\"\"),IF(AND(YEAR(Feb_sv1+10)=Kalendārais_gads,MONTH(Feb_sv1+10)=2),Feb_sv1+10,\"\"))","v":"2022-02-09"},{"$f":"IF(DAY(Feb_sv1)=1,IF(AND(YEAR(Feb_sv1+4)=Kalendārais_gads,MONTH(Feb_sv1+4)=2),Feb_sv1+4,\"\"),IF(AND(YEAR(Feb_sv1+11)=Kalendārais_gads,MONTH(Feb_sv1+11)=2),Feb_sv1+11,\"\"))","v":"2022-02-10"},{"$f":"IF(DAY(Feb_sv1)=1,IF(AND(YEAR(Feb_sv1+5)=Kalendārais_gads,MONTH(Feb_sv1+5)=2),Feb_sv1+5,\"\"),IF(AND(YEAR(Feb_sv1+12)=Kalendārais_gads,MONTH(Feb_sv1+12)=2),Feb_sv1+12,\"\"))","v":"2022-02-11"},{"$f":"IF(DAY(Feb_sv1)=1,IF(AND(YEAR(Feb_sv1+6)=Kalendārais_gads,MONTH(Feb_sv1+6)=2),Feb_sv1+6,\"\"),IF(AND(YEAR(Feb_sv1+13)=Kalendārais_gads,MONTH(Feb_sv1+13)=2),Feb_sv1+13,\"\"))","v":"2022-02-12"},{"$f":"IF(DAY(Feb_sv1)=1,IF(AND(YEAR(Feb_sv1+7)=Kalendārais_gads,MONTH(Feb_sv1+7)=2),Feb_sv1+7,\"\"),IF(AND(YEAR(Feb_sv1+14)=Kalendārais_gads,MONTH(Feb_sv1+14)=2),Feb_sv1+14,\"\"))","v":"2022-02-13"},{"$nulls":3},"14. FEBRUĀRIS"]
[null,null,{"$f":"IF(DAY(Janv_sv1)=1,IF(AND(YEAR(Janv_sv1+8)=Kalendārais_gads,MONTH(Janv_sv1+8)=1),Janv_sv1+8,\"\"),IF(AND(YEAR(Janv_sv1+15)=Kalendārais_gads,MONTH(Janv_sv1+15)=1),Janv_sv1+15,\"\"))","v":"2022-01-10"},{"$f":"IF(DAY(Janv_sv1)=1,IF(AND(YEAR(Janv_sv1+9)=Kalendārais_gads,MONTH(Janv_sv1+9)=1),Janv_sv1+9,\"\"),IF(AND(YEAR(Janv_sv1+16)=Kalendārais_gads,MONTH(Janv_sv1+16)=1),Janv_sv1+16,\"\"))","v":"2022-01-11"},{"$f":"IF(DAY(Janv_sv1)=1,IF(AND(YEAR(Janv_sv1+10)=Kalendārais_gads,MONTH(Janv_sv1+10)=1),Janv_sv1+10,\"\"),IF(AND(YEAR(Janv_sv1+17)=Kalendārais_gads,MONTH(Janv_sv1+17)=1),Janv_sv1+17,\"\"))","v":"2022-01-12"},{"$f":"IF(DAY(Janv_sv1)=1,IF(AND(YEAR(Janv_sv1+11)=Kalendārais_gads,MONTH(Janv_sv1+11)=1),Janv_sv1+11,\"\"),IF(AND(YEAR(Janv_sv1+18)=Kalendārais_gads,MONTH(Janv_sv1+18)=1),Janv_sv1+18,\"\"))","v":"2022-01-13"},{"$f":"IF(DAY(Janv_sv1)=1,IF(AND(YEAR(Janv_sv1+12)=Kalendārais_gads,MONTH(Janv_sv1+12)=1),Janv_sv1+12,\"\"),IF(AND(YEAR(Janv_sv1+19)=Kalendārais_gads,MONTH(Janv_sv1+19)=1),Janv_sv1+19,\"\"))","v":"2022-01-14"},{"$f":"IF(DAY(Janv_sv1)=1,IF(AND(YEAR(Janv_sv1+13)=Kalendārais_gads,MONTH(Janv_sv1+13)=1),Janv_sv1+13,\"\"),IF(AND(YEAR(Janv_sv1+20)=Kalendārais_gads,MONTH(Janv_sv1+20)=1),Janv_sv1+20,\"\"))","v":"2022-01-15"},{"$f":"IF(DAY(Janv_sv1)=1,IF(AND(YEAR(Janv_sv1+14)=Kalendārais_gads,MONTH(Janv_sv1+14)=1),Janv_sv1+14,\"\"),IF(AND(YEAR(Janv_sv1+21)=Kalendārais_gads,MONTH(Janv_sv1+21)=1),Janv_sv1+21,\"\"))","v":"2022-01-16"},null,{"$f":"IF(DAY(Feb_sv1)=1,IF(AND(YEAR(Feb_sv1+8)=Kalendārais_gads,MONTH(Feb_sv1+8)=2),Feb_sv1+8,\"\"),IF(AND(YEAR(Feb_sv1+15)=Kalendārais_gads,MONTH(Feb_sv1+15)=2),Feb_sv1+15,\"\"))","v":"2022-02-14"},{"$f":"IF(DAY(Feb_sv1)=1,IF(AND(YEAR(Feb_sv1+9)=Kalendārais_gads,MONTH(Feb_sv1+9)=2),Feb_sv1+9,\"\"),IF(AND(YEAR(Feb_sv1+16)=Kalendārais_gads,MONTH(Feb_sv1+16)=2),Feb_sv1+16,\"\"))","v":"2022-02-15"},{"$f":"IF(DAY(Feb_sv1)=1,IF(AND(YEAR(Feb_sv1+10)=Kalendārais_gads,MONTH(Feb_sv1+10)=2),Feb_sv1+10,\"\"),IF(AND(YEAR(Feb_sv1+17)=Kalendārais_gads,MONTH(Feb_sv1+17)=2),Feb_sv1+17,\"\"))","v":"2022-02-16"},{"$f":"IF(DAY(Feb_sv1)=1,IF(AND(YEAR(Feb_sv1+11)=Kalendārais_gads,MONTH(Feb_sv1+11)=2),Feb_sv1+11,\"\"),IF(AND(YEAR(Feb_sv1+18)=Kalendārais_gads,MONTH(Feb_sv1+18)=2),Feb_sv1+18,\"\"))","v":"2022-02-17"},{"$f":"IF(DAY(Feb_sv1)=1,IF(AND(YEAR(Feb_sv1+12)=Kalendārais_gads,MONTH(Feb_sv1+12)=2),Feb_sv1+12,\"\"),IF(AND(YEAR(Feb_sv1+19)=Kalendārais_gads,MONTH(Feb_sv1+19)=2),Feb_sv1+19,\"\"))","v":"2022-02-18"},{"$f":"IF(DAY(Feb_sv1)=1,IF(AND(YEAR(Feb_sv1+13)=Kalendārais_gads,MONTH(Feb_sv1+13)=2),Feb_sv1+13,\"\"),IF(AND(YEAR(Feb_sv1+20)=Kalendārais_gads,MONTH(Feb_sv1+20)=2),Feb_sv1+20,\"\"))","v":"2022-02-19"},{"$f":"IF(DAY(Feb_sv1)=1,IF(AND(YEAR(Feb_sv1+14)=Kalendārais_gads,MONTH(Feb_sv1+14)=2),Feb_sv1+14,\"\"),IF(AND(YEAR(Feb_sv1+21)=Kalendārais_gads,MONTH(Feb_sv1+21)=2),Feb_sv1+21,\"\"))","v":"2022-02-20"},{"$nulls":3},"VALENTĪNA DIENA"]
[null,null,{"$f":"IF(DAY(Janv_sv1)=1,IF(AND(YEAR(Janv_sv1+15)=Kalendārais_gads,MONTH(Janv_sv1+15)=1),Janv_sv1+15,\"\"),IF(AND(YEAR(Janv_sv1+22)=Kalendārais_gads,MONTH(Janv_sv1+22)=1),Janv_sv1+22,\"\"))","v":"2022-01-17"},{"$f":"IF(DAY(Janv_sv1)=1,IF(AND(YEAR(Janv_sv1+16)=Kalendārais_gads,MONTH(Janv_sv1+16)=1),Janv_sv1+16,\"\"),IF(AND(YEAR(Janv_sv1+23)=Kalendārais_gads,MONTH(Janv_sv1+23)=1),Janv_sv1+23,\"\"))","v":"2022-01-18"},{"$f":"IF(DAY(Janv_sv1)=1,IF(AND(YEAR(Janv_sv1+17)=Kalendārais_gads,MONTH(Janv_sv1+17)=1),Janv_sv1+17,\"\"),IF(AND(YEAR(Janv_sv1+24)=Kalendārais_gads,MONTH(Janv_sv1+24)=1),Janv_sv1+24,\"\"))","v":"2022-01-19"},{"$f":"IF(DAY(Janv_sv1)=1,IF(AND(YEAR(Janv_sv1+18)=Kalendārais_gads,MONTH(Janv_sv1+18)=1),Janv_sv1+18,\"\"),IF(AND(YEAR(Janv_sv1+25)=Kalendārais_gads,MONTH(Janv_sv1+25)=1),Janv_sv1+25,\"\"))","v":"2022-01-20"},{"$f":"IF(DAY(Janv_sv1)=1,IF(AND(YEAR(Janv_sv1+19)=Kalendārais_gads,MONTH(Janv_sv1+19)=1),Janv_sv1+19,\"\"),IF(AND(YEAR(Janv_sv1+26)=Kalendārais_gads,MONTH(Janv_sv1+26)=1),Janv_sv1+26,\"\"))","v":"2022-01-21"},{"$f":"IF(DAY(Janv_sv1)=1,IF(AND(YEAR(Janv_sv1+20)=Kalendārais_gads,MONTH(Janv_sv1+20)=1),Janv_sv1+20,\"\"),IF(AND(YEAR(Janv_sv1+27)=Kalendārais_gads,MONTH(Janv_sv1+27)=1),Janv_sv1+27,\"\"))","v":"2022-01-22"},{"$f":"IF(DAY(Janv_sv1)=1,IF(AND(YEAR(Janv_sv1+21)=Kalendārais_gads,MONTH(Janv_sv1+21)=1),Janv_sv1+21,\"\"),IF(AND(YEAR(Janv_sv1+28)=Kalendārais_gads,MONTH(Janv_sv1+28)=1),Janv_sv1+28,\"\"))","v":"2022-01-23"},null,{"$f":"IF(DAY(Feb_sv1)=1,IF(AND(YEAR(Feb_sv1+15)=Kalendārais_gads,MONTH(Feb_sv1+15)=2),Feb_sv1+15,\"\"),IF(AND(YEAR(Feb_sv1+22)=Kalendārais_gads,MONTH(Feb_sv1+22)=2),Feb_sv1+22,\"\"))","v":"2022-02-21"},{"$f":"IF(DAY(Feb_sv1)=1,IF(AND(YEAR(Feb_sv1+16)=Kalendārais_gads,MONTH(Feb_sv1+16)=2),Feb_sv1+16,\"\"),IF(AND(YEAR(Feb_sv1+23)=Kalendārais_gads,MONTH(Feb_sv1+23)=2),Feb_sv1+23,\"\"))","v":"2022-02-22"},{"$f":"IF(DAY(Feb_sv1)=1,IF(AND(YEAR(Feb_sv1+17)=Kalendārais_gads,MONTH(Feb_sv1+17)=2),Feb_sv1+17,\"\"),IF(AND(YEAR(Feb_sv1+24)=Kalendārais_gads,MONTH(Feb_sv1+24)=2),Feb_sv1+24,\"\"))","v":"2022-02-23"},{"$f":"IF(DAY(Feb_sv1)=1,IF(AND(YEAR(Feb_sv1+18)=Kalendārais_gads,MONTH(Feb_sv1+18)=2),Feb_sv1+18,\"\"),IF(AND(YEAR(Feb_sv1+25)=Kalendārais_gads,MONTH(Feb_sv1+25)=2),Feb_sv1+25,\"\"))","v":"2022-02-24"},{"$f":"IF(DAY(Feb_sv1)=1,IF(AND(YEAR(Feb_sv1+19)=Kalendārais_gads,MONTH(Feb_sv1+19)=2),Feb_sv1+19,\"\"),IF(AND(YEAR(Feb_sv1+26)=Kalendārais_gads,MONTH(Feb_sv1+26)=2),Feb_sv1+26,\"\"))","v":"2022-02-25"},{"$f":"IF(DAY(Feb_sv1)=1,IF(AND(YEAR(Feb_sv1+20)=Kalendārais_gads,MONTH(Feb_sv1+20)=2),Feb_sv1+20,\"\"),IF(AND(YEAR(Feb_sv1+27)=Kalendārais_gads,MONTH(Feb_sv1+27)=2),Feb_sv1+27,\"\"))","v":"2022-02-26"},{"$f":"IF(DAY(Feb_sv1)=1,IF(AND(YEAR(Feb_sv1+21)=Kalendārais_gads,MONTH(Feb_sv1+21)=2),Feb_sv1+21,\"\"),IF(AND(YEAR(Feb_sv1+28)=Kalendārais_gads,MONTH(Feb_sv1+28)=2),Feb_sv1+28,\"\"))","v":"2022-02-27"}]
[null,null,{"$f":"IF(DAY(Janv_sv1)=1,IF(AND(YEAR(Janv_sv1+22)=Kalendārais_gads,MONTH(Janv_sv1+22)=1),Janv_sv1+22,\"\"),IF(AND(YEAR(Janv_sv1+29)=Kalendārais_gads,MONTH(Janv_sv1+29)=1),Janv_sv1+29,\"\"))","v":"2022-01-24"},{"$f":"IF(DAY(Janv_sv1)=1,IF(AND(YEAR(Janv_sv1+23)=Kalendārais_gads,MONTH(Janv_sv1+23)=1),Janv_sv1+23,\"\"),IF(AND(YEAR(Janv_sv1+30)=Kalendārais_gads,MONTH(Janv_sv1+30)=1),Janv_sv1+30,\"\"))","v":"2022-01-25"},{"$f":"IF(DAY(Janv_sv1)=1,IF(AND(YEAR(Janv_sv1+24)=Kalendārais_gads,MONTH(Janv_sv1+24)=1),Janv_sv1+24,\"\"),IF(AND(YEAR(Janv_sv1+31)=Kalendārais_gads,MONTH(Janv_sv1+31)=1),Janv_sv1+31,\"\"))","v":"2022-01-26"},{"$f":"IF(DAY(Janv_sv1)=1,IF(AND(YEAR(Janv_sv1+25)=Kalendārais_gads,MONTH(Janv_sv1+25)=1),Janv_sv1+25,\"\"),IF(AND(YEAR(Janv_sv1+32)=Kalendārais_gads,MONTH(Janv_sv1+32)=1),Janv_sv1+32,\"\"))","v":"2022-01-27"},{"$f":"IF(DAY(Janv_sv1)=1,IF(AND(YEAR(Janv_sv1+26)=Kalendārais_gads,MONTH(Janv_sv1+26)=1),Janv_sv1+26,\"\"),IF(AND(YEAR(Janv_sv1+33)=Kalendārais_gads,MONTH(Janv_sv1+33)=1),Janv_sv1+33,\"\"))","v":"2022-01-28"},{"$f":"IF(DAY(Janv_sv1)=1,IF(AND(YEAR(Janv_sv1+27)=Kalendārais_gads,MONTH(Janv_sv1+27)=1),Janv_sv1+27,\"\"),IF(AND(YEAR(Janv_sv1+34)=Kalendārais_gads,MONTH(Janv_sv1+34)=1),Janv_sv1+34,\"\"))","v":"2022-01-29"},{"$f":"IF(DAY(Janv_sv1)=1,IF(AND(YEAR(Janv_sv1+28)=Kalendārais_gads,MONTH(Janv_sv1+28)=1),Janv_sv1+28,\"\"),IF(AND(YEAR(Janv_sv1+35)=Kalendārais_gads,MONTH(Janv_sv1+35)=1),Janv_sv1+35,\"\"))","v":"2022-01-30"},null,{"$f":"IF(DAY(Feb_sv1)=1,IF(AND(YEAR(Feb_sv1+22)=Kalendārais_gads,MONTH(Feb_sv1+22)=2),Feb_sv1+22,\"\"),IF(AND(YEAR(Feb_sv1+29)=Kalendārais_gads,MONTH(Feb_sv1+29)=2),Feb_sv1+29,\"\"))","v":"2022-02-28"},{"$f":"IF(DAY(Feb_sv1)=1,IF(AND(YEAR(Feb_sv1+23)=Kalendārais_gads,MONTH(Feb_sv1+23)=2),Feb_sv1+23,\"\"),IF(AND(YEAR(Feb_sv1+30)=Kalendārais_gads,MONTH(Feb_sv1+30)=2),Feb_sv1+30,\"\"))","v":""},{"$f":"IF(DAY(Feb_sv1)=1,IF(AND(YEAR(Feb_sv1+24)=Kalendārais_gads,MONTH(Feb_sv1+24)=2),Feb_sv1+24,\"\"),IF(AND(YEAR(Feb_sv1+31)=Kalendārais_gads,MONTH(Feb_sv1+31)=2),Feb_sv1+31,\"\"))","v":""},{"$f":"IF(DAY(Feb_sv1)=1,IF(AND(YEAR(Feb_sv1+25)=Kalendārais_gads,MONTH(Feb_sv1+25)=2),Feb_sv1+25,\"\"),IF(AND(YEAR(Feb_sv1+32)=Kalendārais_gads,MONTH(Feb_sv1+32)=2),Feb_sv1+32,\"\"))","v":""},{"$f":"IF(DAY(Feb_sv1)=1,IF(AND(YEAR(Feb_sv1+26)=Kalendārais_gads,MONTH(Feb_sv1+26)=2),Feb_sv1+26,\"\"),IF(AND(YEAR(Feb_sv1+33)=Kalendārais_gads,MONTH(Feb_sv1+33)=2),Feb_sv1+33,\"\"))","v":""},{"$f":"IF(DAY(Feb_sv1)=1,IF(AND(YEAR(Feb_sv1+27)=Kalendārais_gads,MONTH(Feb_sv1+27)=2),Feb_sv1+27,\"\"),IF(AND(YEAR(Feb_sv1+34)=Kalendārais_gads,MONTH(Feb_sv1+34)=2),Feb_sv1+34,\"\"))","v":""},{"$f":"IF(DAY(Feb_sv1)=1,IF(AND(YEAR(Feb_sv1+28)=Kalendārais_gads,MONTH(Feb_sv1+28)=2),Feb_sv1+28,\"\"),IF(AND(YEAR(Feb_sv1+35)=Kalendārais_gads,MONTH(Feb_sv1+35)=2),Feb_sv1+35,\"\"))","v":""},{"$nulls":3},"22. FEBRUĀRIS"]
[null,null,{"$f":"IF(DAY(Janv_sv1)=1,IF(AND(YEAR(Janv_sv1+29)=Kalendārais_gads,MONTH(Janv_sv1+29)=1),Janv_sv1+29,\"\"),IF(AND(YEAR(Janv_sv1+36)=Kalendārais_gads,MONTH(Janv_sv1+36)=1),Janv_sv1+36,\"\"))","v":"2022-01-31"},{"$f":"IF(DAY(Janv_sv1)=1,IF(AND(YEAR(Janv_sv1+30)=Kalendārais_gads,MONTH(Janv_sv1+30)=1),Janv_sv1+30,\"\"),IF(AND(YEAR(Janv_sv1+37)=Kalendārais_gads,MONTH(Janv_sv1+37)=1),Janv_sv1+37,\"\"))","v":""},{"$f":"IF(DAY(Janv_sv1)=1,IF(AND(YEAR(Janv_sv1+31)=Kalendārais_gads,MONTH(Janv_sv1+31)=1),Janv_sv1+31,\"\"),IF(AND(YEAR(Janv_sv1+38)=Kalendārais_gads,MONTH(Janv_sv1+38)=1),Janv_sv1+38,\"\"))","v":""},{"$f":"IF(DAY(Janv_sv1)=1,IF(AND(YEAR(Janv_sv1+32)=Kalendārais_gads,MONTH(Janv_sv1+32)=1),Janv_sv1+32,\"\"),IF(AND(YEAR(Janv_sv1+39)=Kalendārais_gads,MONTH(Janv_sv1+39)=1),Janv_sv1+39,\"\"))","v":""},{"$f":"IF(DAY(Janv_sv1)=1,IF(AND(YEAR(Janv_sv1+33)=Kalendārais_gads,MONTH(Janv_sv1+33)=1),Janv_sv1+33,\"\"),IF(AND(YEAR(Janv_sv1+40)=Kalendārais_gads,MONTH(Janv_sv1+40)=1),Janv_sv1+40,\"\"))","v":""},{"$f":"IF(DAY(Janv_sv1)=1,IF(AND(YEAR(Janv_sv1+34)=Kalendārais_gads,MONTH(Janv_sv1+34)=1),Janv_sv1+34,\"\"),IF(AND(YEAR(Janv_sv1+41)=Kalendārais_gads,MONTH(Janv_sv1+41)=1),Janv_sv1+41,\"\"))","v":""},{"$f":"IF(DAY(Janv_sv1)=1,IF(AND(YEAR(Janv_sv1+35)=Kalendārais_gads,MONTH(Janv_sv1+35)=1),Janv_sv1+35,\"\"),IF(AND(YEAR(Janv_sv1+42)=Kalendārais_gads,MONTH(Janv_sv1+42)=1),Janv_sv1+42,\"\"))","v":""},null,{"$f":"IF(DAY(Feb_sv1)=1,IF(AND(YEAR(Feb_sv1+29)=Kalendārais_gads,MONTH(Feb_sv1+29)=2),Feb_sv1+29,\"\"),IF(AND(YEAR(Feb_sv1+36)=Kalendārais_gads,MONTH(Feb_sv1+36)=2),Feb_sv1+36,\"\"))","v":""},{"$f":"IF(DAY(Feb_sv1)=1,IF(AND(YEAR(Feb_sv1+30)=Kalendārais_gads,MONTH(Feb_sv1+30)=2),Feb_sv1+30,\"\"),IF(AND(YEAR(Feb_sv1+37)=Kalendārais_gads,MONTH(Feb_sv1+37)=2),Feb_sv1+37,\"\"))","v":""},{"$f":"IF(DAY(Feb_sv1)=1,IF(AND(YEAR(Feb_sv1+31)=Kalendārais_gads,MONTH(Feb_sv1+31)=2),Feb_sv1+31,\"\"),IF(AND(YEAR(Feb_sv1+38)=Kalendārais_gads,MONTH(Feb_sv1+38)=2),Feb_sv1+38,\"\"))","v":""},{"$f":"IF(DAY(Feb_sv1)=1,IF(AND(YEAR(Feb_sv1+32)=Kalendārais_gads,MONTH(Feb_sv1+32)=2),Feb_sv1+32,\"\"),IF(AND(YEAR(Feb_sv1+39)=Kalendārais_gads,MONTH(Feb_sv1+39)=2),Feb_sv1+39,\"\"))","v":""},{"$f":"IF(DAY(Feb_sv1)=1,IF(AND(YEAR(Feb_sv1+33)=Kalendārais_gads,MONTH(Feb_sv1+33)=2),Feb_sv1+33,\"\"),IF(AND(YEAR(Feb_sv1+40)=Kalendārais_gads,MONTH(Feb_sv1+40)=2),Feb_sv1+40,\"\"))","v":""},{"$f":"IF(DAY(Feb_sv1)=1,IF(AND(YEAR(Feb_sv1+34)=Kalendārais_gads,MONTH(Feb_sv1+34)=2),Feb_sv1+34,\"\"),IF(AND(YEAR(Feb_sv1+41)=Kalendārais_gads,MONTH(Feb_sv1+41)=2),Feb_sv1+41,\"\"))","v":""},{"$f":"IF(DAY(Feb_sv1)=1,IF(AND(YEAR(Feb_sv1+35)=Kalendārais_gads,MONTH(Feb_sv1+35)=2),Feb_sv1+35,\"\"),IF(AND(YEAR(Feb_sv1+42)=Kalendārais_gads,MONTH(Feb_sv1+42)=2),Feb_sv1+42,\"\"))","v":""},{"$nulls":3},"ATVĒRTO DURVJU DIENA"]
[]
["Marta etiķete atrodas šūnā C12, bet aprīļa etiķete — šūnā K12",null,"MARTS",{"$nulls":7},"APRĪLIS"]
["Marta kalendāra tabula ir šūnu diapazonā C13–I10, bet aprīļa kalendāra tabula — šūnu diapazonā K13 to Q19. Nākamais norādījums ir šūnā A21",null,"PR","OT","TR","CE","PK","SE","SV",null,"PR","OT","TR","CE","PK","SE","SV"]
[null,null,{"$f":"IF(DAY(Mar_sv1)=1,\"\",IF(AND(YEAR(Mar_sv1+1)=Kalendārais_gads,MONTH(Mar_sv1+1)=3),Mar_sv1+1,\"\"))","v":""},{"$f":"IF(DAY(Mar_sv1)=1,\"\",IF(AND(YEAR(Mar_sv1+2)=Kalendārais_gads,MONTH(Mar_sv1+2)=3),Mar_sv1+2,\"\"))","v":"2022-03-01"},{"$f":"IF(DAY(Mar_sv1)=1,\"\",IF(AND(YEAR(Mar_sv1+3)=Kalendārais_gads,MONTH(Mar_sv1+3)=3),Mar_sv1+3,\"\"))","v":"2022-03-02"},{"$f":"IF(DAY(Mar_sv1)=1,\"\",IF(AND(YEAR(Mar_sv1+4)=Kalendārais_gads,MONTH(Mar_sv1+4)=3),Mar_sv1+4,\"\"))","v":"2022-03-03"},{"$f":"IF(DAY(Mar_sv1)=1,\"\",IF(AND(YEAR(Mar_sv1+5)=Kalendārais_gads,MONTH(Mar_sv1+5)=3),Mar_sv1+5,\"\"))","v":"2022-03-04"},{"$f":"IF(DAY(Mar_sv1)=1,\"\",IF(AND(YEAR(Mar_sv1+6)=Kalendārais_gads,MONTH(Mar_sv1+6)=3),Mar_sv1+6,\"\"))","v":"2022-03-05"},{"$f":"IF(DAY(Mar_sv1)=1,IF(AND(YEAR(Mar_sv1)=Kalendārais_gads,MONTH(Mar_sv1)=3),Mar_sv1,\"\"),IF(AND(YEAR(Mar_sv1+7)=Kalendārais_gads,MONTH(Mar_sv1+7)=3),Mar_sv1+7,\"\"))","v":"2022-03-06"},null,{"$f":"IF(DAY(Apr_sv1)=1,\"\",IF(AND(YEAR(Apr_sv1+1)=Kalendārais_gads,MONTH(Apr_sv1+1)=4),Apr_sv1+1,\"\"))","v":""},{"$f":"IF(DAY(Apr_sv1)=1,\"\",IF(AND(YEAR(Apr_sv1+2)=Kalendārais_gads,MONTH(Apr_sv1+2)=4),Apr_sv1+2,\"\"))","v":""},{"$f":"IF(DAY(Apr_sv1)=1,\"\",IF(AND(YEAR(Apr_sv1+3)=Kalendārais_gads,MONTH(Apr_sv1+3)=4),Apr_sv1+3,\"\"))","v":""},{"$f":"IF(DAY(Apr_sv1)=1,\"\",IF(AND(YEAR(Apr_sv1+4)=Kalendārais_gads,MONTH(Apr_sv1+4)=4),Apr_sv1+4,\"\"))","v":""},{"$f":"IF(DAY(Apr_sv1)=1,\"\",IF(AND(YEAR(Apr_sv1+5)=Kalendārais_gads,MONTH(Apr_sv1+5)=4),Apr_sv1+5,\"\"))","v":"2022-04-01"},{"$f":"IF(DAY(Apr_sv1)=1,\"\",IF(AND(YEAR(Apr_sv1+6)=Kalendārais_gads,MONTH(Apr_sv1+6)=4),Apr_sv1+6,\"\"))","v":"2022-04-02"},{"$f":"IF(DAY(Apr_sv1)=1,IF(AND(YEAR(Apr_sv1)=Kalendārais_gads,MONTH(Apr_sv1)=4),Apr_sv1,\"\"),IF(AND(YEAR(Apr_sv1+7)=Kalendārais_gads,MONTH(Apr_sv1+7)=4),Apr_sv1+7,\"\"))","v":"2022-04-03"}]
[null,null,{"$f":"IF(DAY(Mar_sv1)=1,IF(AND(YEAR(Mar_sv1+1)=Kalendārais_gads,MONTH(Mar_sv1+1)=3),Mar_sv1+1,\"\"),IF(AND(YEAR(Mar_sv1+8)=Kalendārais_gads,MONTH(Mar_sv1+8)=3),Mar_sv1+8,\"\"))","v":"2022-03-07"},{"$f":"IF(DAY(Mar_sv1)=1,IF(AND(YEAR(Mar_sv1+2)=Kalendārais_gads,MONTH(Mar_sv1+2)=3),Mar_sv1+2,\"\"),IF(AND(YEAR(Mar_sv1+9)=Kalendārais_gads,MONTH(Mar_sv1+9)=3),Mar_sv1+9,\"\"))","v":"2022-03-08"},{"$f":"IF(DAY(Mar_sv1)=1,IF(AND(YEAR(Mar_sv1+3)=Kalendārais_gads,MONTH(Mar_sv1+3)=3),Mar_sv1+3,\"\"),IF(AND(YEAR(Mar_sv1+10)=Kalendārais_gads,MONTH(Mar_sv1+10)=3),Mar_sv1+10,\"\"))","v":"2022-03-09"},{"$f":"IF(DAY(Mar_sv1)=1,IF(AND(YEAR(Mar_sv1+4)=Kalendārais_gads,MONTH(Mar_sv1+4)=3),Mar_sv1+4,\"\"),IF(AND(YEAR(Mar_sv1+11)=Kalendārais_gads,MONTH(Mar_sv1+11)=3),Mar_sv1+11,\"\"))","v":"2022-03-10"},{"$f":"IF(DAY(Mar_sv1)=1,IF(AND(YEAR(Mar_sv1+5)=Kalendārais_gads,MONTH(Mar_sv1+5)=3),Mar_sv1+5,\"\"),IF(AND(YEAR(Mar_sv1+12)=Kalendārais_gads,MONTH(Mar_sv1+12)=3),Mar_sv1+12,\"\"))","v":"2022-03-11"},{"$f":"IF(DAY(Mar_sv1)=1,IF(AND(YEAR(Mar_sv1+6)=Kalendārais_gads,MONTH(Mar_sv1+6)=3),Mar_sv1+6,\"\"),IF(AND(YEAR(Mar_sv1+13)=Kalendārais_gads,MONTH(Mar_sv1+13)=3),Mar_sv1+13,\"\"))","v":"2022-03-12"},{"$f":"IF(DAY(Mar_sv1)=1,IF(AND(YEAR(Mar_sv1+7)=Kalendārais_gads,MONTH(Mar_sv1+7)=3),Mar_sv1+7,\"\"),IF(AND(YEAR(Mar_sv1+14)=Kalendārais_gads,MONTH(Mar_sv1+14)=3),Mar_sv1+14,\"\"))","v":"2022-03-13"},null,{"$f":"IF(DAY(Apr_sv1)=1,IF(AND(YEAR(Apr_sv1+1)=Kalendārais_gads,MONTH(Apr_sv1+1)=4),Apr_sv1+1,\"\"),IF(AND(YEAR(Apr_sv1+8)=Kalendārais_gads,MONTH(Apr_sv1+8)=4),Apr_sv1+8,\"\"))","v":"2022-04-04"},{"$f":"IF(DAY(Apr_sv1)=1,IF(AND(YEAR(Apr_sv1+2)=Kalendārais_gads,MONTH(Apr_sv1+2)=4),Apr_sv1+2,\"\"),IF(AND(YEAR(Apr_sv1+9)=Kalendārais_gads,MONTH(Apr_sv1+9)=4),Apr_sv1+9,\"\"))","v":"2022-04-05"},{"$f":"IF(DAY(Apr_sv1)=1,IF(AND(YEAR(Apr_sv1+3)=Kalendārais_gads,MONTH(Apr_sv1+3)=4),Apr_sv1+3,\"\"),IF(AND(YEAR(Apr_sv1+10)=Kalendārais_gads,MONTH(Apr_sv1+10)=4),Apr_sv1+10,\"\"))","v":"2022-04-06"},{"$f":"IF(DAY(Apr_sv1)=1,IF(AND(YEAR(Apr_sv1+4)=Kalendārais_gads,MONTH(Apr_sv1+4)=4),Apr_sv1+4,\"\"),IF(AND(YEAR(Apr_sv1+11)=Kalendārais_gads,MONTH(Apr_sv1+11)=4),Apr_sv1+11,\"\"))","v":"2022-04-07"},{"$f":"IF(DAY(Apr_sv1)=1,IF(AND(YEAR(Apr_sv1+5)=Kalendārais_gads,MONTH(Apr_sv1+5)=4),Apr_sv1+5,\"\"),IF(AND(YEAR(Apr_sv1+12)=Kalendārais_gads,MONTH(Apr_sv1+12)=4),Apr_sv1+12,\"\"))","v":"2022-04-08"},{"$f":"IF(DAY(Apr_sv1)=1,IF(AND(YEAR(Apr_sv1+6)=Kalendārais_gads,MONTH(Apr_sv1+6)=4),Apr_sv1+6,\"\"),IF(AND(YEAR(Apr_sv1+13)=Kalendārais_gads,MONTH(Apr_sv1+13)=4),Apr_sv1+13,\"\"))","v":"2022-04-09"},{"$f":"IF(DAY(Apr_sv1)=1,IF(AND(YEAR(Apr_sv1+7)=Kalendārais_gads,MONTH(Apr_sv1+7)=4),Apr_sv1+7,\"\"),IF(AND(YEAR(Apr_sv1+14)=Kalendārais_gads,MONTH(Apr_sv1+14)=4),Apr_sv1+14,\"\"))","v":"2022-04-10"}]
[null,null,{"$f":"IF(DAY(Mar_sv1)=1,IF(AND(YEAR(Mar_sv1+8)=Kalendārais_gads,MONTH(Mar_sv1+8)=3),Mar_sv1+8,\"\"),IF(AND(YEAR(Mar_sv1+15)=Kalendārais_gads,MONTH(Mar_sv1+15)=3),Mar_sv1+15,\"\"))","v":"2022-03-14"},{"$f":"IF(DAY(Mar_sv1)=1,IF(AND(YEAR(Mar_sv1+9)=Kalendārais_gads,MONTH(Mar_sv1+9)=3),Mar_sv1+9,\"\"),IF(AND(YEAR(Mar_sv1+16)=Kalendārais_gads,MONTH(Mar_sv1+16)=3),Mar_sv1+16,\"\"))","v":"2022-03-15"},{"$f":"IF(DAY(Mar_sv1)=1,IF(AND(YEAR(Mar_sv1+10)=Kalendārais_gads,MONTH(Mar_sv1+10)=3),Mar_sv1+10,\"\"),IF(AND(YEAR(Mar_sv1+17)=Kalendārais_gads,MONTH(Mar_sv1+17)=3),Mar_sv1+17,\"\"))","v":"2022-03-16"},{"$f":"IF(DAY(Mar_sv1)=1,IF(AND(YEAR(Mar_sv1+11)=Kalendārais_gads,MONTH(Mar_sv1+11)=3),Mar_sv1+11,\"\"),IF(AND(YEAR(Mar_sv1+18)=Kalendārais_gads,MONTH(Mar_sv1+18)=3),Mar_sv1+18,\"\"))","v":"2022-03-17"},{"$f":"IF(DAY(Mar_sv1)=1,IF(AND(YEAR(Mar_sv1+12)=Kalendārais_gads,MONTH(Mar_sv1+12)=3),Mar_sv1+12,\"\"),IF(AND(YEAR(Mar_sv1+19)=Kalendārais_gads,MONTH(Mar_sv1+19)=3),Mar_sv1+19,\"\"))","v":"2022-03-18"},{"$f":"IF(DAY(Mar_sv1)=1,IF(AND(YEAR(Mar_sv1+13)=Kalendārais_gads,MONTH(Mar_sv1+13)=3),Mar_sv1+13,\"\"),IF(AND(YEAR(Mar_sv1+20)=Kalendārais_gads,MONTH(Mar_sv1+20)=3),Mar_sv1+20,\"\"))","v":"2022-03-19"},{"$f":"IF(DAY(Mar_sv1)=1,IF(AND(YEAR(Mar_sv1+14)=Kalendārais_gads,MONTH(Mar_sv1+14)=3),Mar_sv1+14,\"\"),IF(AND(YEAR(Mar_sv1+21)=Kalendārais_gads,MONTH(Mar_sv1+21)=3),Mar_sv1+21,\"\"))","v":"2022-03-20"},null,{"$f":"IF(DAY(Apr_sv1)=1,IF(AND(YEAR(Apr_sv1+8)=Kalendārais_gads,MONTH(Apr_sv1+8)=4),Apr_sv1+8,\"\"),IF(AND(YEAR(Apr_sv1+15)=Kalendārais_gads,MONTH(Apr_sv1+15)=4),Apr_sv1+15,\"\"))","v":"2022-04-11"},{"$f":"IF(DAY(Apr_sv1)=1,IF(AND(YEAR(Apr_sv1+9)=Kalendārais_gads,MONTH(Apr_sv1+9)=4),Apr_sv1+9,\"\"),IF(AND(YEAR(Apr_sv1+16)=Kalendārais_gads,MONTH(Apr_sv1+16)=4),Apr_sv1+16,\"\"))","v":"2022-04-12"},{"$f":"IF(DAY(Apr_sv1)=1,IF(AND(YEAR(Apr_sv1+10)=Kalendārais_gads,MONTH(Apr_sv1+10)=4),Apr_sv1+10,\"\"),IF(AND(YEAR(Apr_sv1+17)=Kalendārais_gads,MONTH(Apr_sv1+17)=4),Apr_sv1+17,\"\"))","v":"2022-04-13"},{"$f":"IF(DAY(Apr_sv1)=1,IF(AND(YEAR(Apr_sv1+11)=Kalendārais_gads,MONTH(Apr_sv1+11)=4),Apr_sv1+11,\"\"),IF(AND(YEAR(Apr_sv1+18)=Kalendārais_gads,MONTH(Apr_sv1+18)=4),Apr_sv1+18,\"\"))","v":"2022-04-14"},{"$f":"IF(DAY(Apr_sv1)=1,IF(AND(YEAR(Apr_sv1+12)=Kalendārais_gads,MONTH(Apr_sv1+12)=4),Apr_sv1+12,\"\"),IF(AND(YEAR(Apr_sv1+19)=Kalendārais_gads,MONTH(Apr_sv1+19)=4),Apr_sv1+19,\"\"))","v":"2022-04-15"},{"$f":"IF(DAY(Apr_sv1)=1,IF(AND(YEAR(Apr_sv1+13)=Kalendārais_gads,MONTH(Apr_sv1+13)=4),Apr_sv1+13,\"\"),IF(AND(YEAR(Apr_sv1+20)=Kalendārais_gads,MONTH(Apr_sv1+20)=4),Apr_sv1+20,\"\"))","v":"2022-04-16"},{"$f":"IF(DAY(Apr_sv1)=1,IF(AND(YEAR(Apr_sv1+14)=Kalendārais_gads,MONTH(Apr_sv1+14)=4),Apr_sv1+14,\"\"),IF(AND(YEAR(Apr_sv1+21)=Kalendārais_gads,MONTH(Apr_sv1+21)=4),Apr_sv1+21,\"\"))","v":"2022-04-17"}]
[null,null,{"$f":"IF(DAY(Mar_sv1)=1,IF(AND(YEAR(Mar_sv1+15)=Kalendārais_gads,MONTH(Mar_sv1+15)=3),Mar_sv1+15,\"\"),IF(AND(YEAR(Mar_sv1+22)=Kalendārais_gads,MONTH(Mar_sv1+22)=3),Mar_sv1+22,\"\"))","v":"2022-03-21"},{"$f":"IF(DAY(Mar_sv1)=1,IF(AND(YEAR(Mar_sv1+16)=Kalendārais_gads,MONTH(Mar_sv1+16)=3),Mar_sv1+16,\"\"),IF(AND(YEAR(Mar_sv1+23)=Kalendārais_gads,MONTH(Mar_sv1+23)=3),Mar_sv1+23,\"\"))","v":"2022-03-22"},{"$f":"IF(DAY(Mar_sv1)=1,IF(AND(YEAR(Mar_sv1+17)=Kalendārais_gads,MONTH(Mar_sv1+17)=3),Mar_sv1+17,\"\"),IF(AND(YEAR(Mar_sv1+24)=Kalendārais_gads,MONTH(Mar_sv1+24)=3),Mar_sv1+24,\"\"))","v":"2022-03-23"},{"$f":"IF(DAY(Mar_sv1)=1,IF(AND(YEAR(Mar_sv1+18)=Kalendārais_gads,MONTH(Mar_sv1+18)=3),Mar_sv1+18,\"\"),IF(AND(YEAR(Mar_sv1+25)=Kalendārais_gads,MONTH(Mar_sv1+25)=3),Mar_sv1+25,\"\"))","v":"2022-03-24"},{"$f":"IF(DAY(Mar_sv1)=1,IF(AND(YEAR(Mar_sv1+19)=Kalendārais_gads,MONTH(Mar_sv1+19)=3),Mar_sv1+19,\"\"),IF(AND(YEAR(Mar_sv1+26)=Kalendārais_gads,MONTH(Mar_sv1+26)=3),Mar_sv1+26,\"\"))","v":"2022-03-25"},{"$f":"IF(DAY(Mar_sv1)=1,IF(AND(YEAR(Mar_sv1+20)=Kalendārais_gads,MONTH(Mar_sv1+20)=3),Mar_sv1+20,\"\"),IF(AND(YEAR(Mar_sv1+27)=Kalendārais_gads,MONTH(Mar_sv1+27)=3),Mar_sv1+27,\"\"))","v":"2022-03-26"},{"$f":"IF(DAY(Mar_sv1)=1,IF(AND(YEAR(Mar_sv1+21)=Kalendārais_gads,MONTH(Mar_sv1+21)=3),Mar_sv1+21,\"\"),IF(AND(YEAR(Mar_sv1+28)=Kalendārais_gads,MONTH(Mar_sv1+28)=3),Mar_sv1+28,\"\"))","v":"2022-03-27"},null,{"$f":"IF(DAY(Apr_sv1)=1,IF(AND(YEAR(Apr_sv1+15)=Kalendārais_gads,MONTH(Apr_sv1+15)=4),Apr_sv1+15,\"\"),IF(AND(YEAR(Apr_sv1+22)=Kalendārais_gads,MONTH(Apr_sv1+22)=4),Apr_sv1+22,\"\"))","v":"2022-04-18"},{"$f":"IF(DAY(Apr_sv1)=1,IF(AND(YEAR(Apr_sv1+16)=Kalendārais_gads,MONTH(Apr_sv1+16)=4),Apr_sv1+16,\"\"),IF(AND(YEAR(Apr_sv1+23)=Kalendārais_gads,MONTH(Apr_sv1+23)=4),Apr_sv1+23,\"\"))","v":"2022-04-19"},{"$f":"IF(DAY(Apr_sv1)=1,IF(AND(YEAR(Apr_sv1+17)=Kalendārais_gads,MONTH(Apr_sv1+17)=4),Apr_sv1+17,\"\"),IF(AND(YEAR(Apr_sv1+24)=Kalendārais_gads,MONTH(Apr_sv1+24)=4),Apr_sv1+24,\"\"))","v":"2022-04-20"},{"$f":"IF(DAY(Apr_sv1)=1,IF(AND(YEAR(Apr_sv1+18)=Kalendārais_gads,MONTH(Apr_sv1+18)=4),Apr_sv1+18,\"\"),IF(AND(YEAR(Apr_sv1+25)=Kalendārais_gads,MONTH(Apr_sv1+25)=4),Apr_sv1+25,\"\"))","v":"2022-04-21"},{"$f":"IF(DAY(Apr_sv1)=1,IF(AND(YEAR(Apr_sv1+19)=Kalendārais_gads,MONTH(Apr_sv1+19)=4),Apr_sv1+19,\"\"),IF(AND(YEAR(Apr_sv1+26)=Kalendārais_gads,MONTH(Apr_sv1+26)=4),Apr_sv1+26,\"\"))","v":"2022-04-22"},{"$f":"IF(DAY(Apr_sv1)=1,IF(AND(YEAR(Apr_sv1+20)=Kalendārais_gads,MONTH(Apr_sv1+20)=4),Apr_sv1+20,\"\"),IF(AND(YEAR(Apr_sv1+27)=Kalendārais_gads,MONTH(Apr_sv1+27)=4),Apr_sv1+27,\"\"))","v":"2022-04-23"},{"$f":"IF(DAY(Apr_sv1)=1,IF(AND(YEAR(Apr_sv1+21)=Kalendārais_gads,MONTH(Apr_sv1+21)=4),Apr_sv1+21,\"\"),IF(AND(YEAR(Apr_sv1+28)=Kalendārais_gads,MONTH(Apr_sv1+28)=4),Apr_sv1+28,\"\"))","v":"2022-04-24"}]
[null,null,{"$f":"IF(DAY(Mar_sv1)=1,IF(AND(YEAR(Mar_sv1+22)=Kalendārais_gads,MONTH(Mar_sv1+22)=3),Mar_sv1+22,\"\"),IF(AND(YEAR(Mar_sv1+29)=Kalendārais_gads,MONTH(Mar_sv1+29)=3),Mar_sv1+29,\"\"))","v":"2022-03-28"},{"$f":"IF(DAY(Mar_sv1)=1,IF(AND(YEAR(Mar_sv1+23)=Kalendārais_gads,MONTH(Mar_sv1+23)=3),Mar_sv1+23,\"\"),IF(AND(YEAR(Mar_sv1+30)=Kalendārais_gads,MONTH(Mar_sv1+30)=3),Mar_sv1+30,\"\"))","v":"2022-03-29"},{"$f":"IF(DAY(Mar_sv1)=1,IF(AND(YEAR(Mar_sv1+24)=Kalendārais_gads,MONTH(Mar_sv1+24)=3),Mar_sv1+24,\"\"),IF(AND(YEAR(Mar_sv1+31)=Kalendārais_gads,MONTH(Mar_sv1+31)=3),Mar_sv1+31,\"\"))","v":"2022-03-30"},{"$f":"IF(DAY(Mar_sv1)=1,IF(AND(YEAR(Mar_sv1+25)=Kalendārais_gads,MONTH(Mar_sv1+25)=3),Mar_sv1+25,\"\"),IF(AND(YEAR(Mar_sv1+32)=Kalendārais_gads,MONTH(Mar_sv1+32)=3),Mar_sv1+32,\"\"))","v":"2022-03-31"},{"$f":"IF(DAY(Mar_sv1)=1,IF(AND(YEAR(Mar_sv1+26)=Kalendārais_gads,MONTH(Mar_sv1+26)=3),Mar_sv1+26,\"\"),IF(AND(YEAR(Mar_sv1+33)=Kalendārais_gads,MONTH(Mar_sv1+33)=3),Mar_sv1+33,\"\"))","v":""},{"$f":"IF(DAY(Mar_sv1)=1,IF(AND(YEAR(Mar_sv1+27)=Kalendārais_gads,MONTH(Mar_sv1+27)=3),Mar_sv1+27,\"\"),IF(AND(YEAR(Mar_sv1+34)=Kalendārais_gads,MONTH(Mar_sv1+34)=3),Mar_sv1+34,\"\"))","v":""},{"$f":"IF(DAY(Mar_sv1)=1,IF(AND(YEAR(Mar_sv1+28)=Kalendārais_gads,MONTH(Mar_sv1+28)=3),Mar_sv1+28,\"\"),IF(AND(YEAR(Mar_sv1+35)=Kalendārais_gads,MONTH(Mar_sv1+35)=3),Mar_sv1+35,\"\"))","v":""},null,{"$f":"IF(DAY(Apr_sv1)=1,IF(AND(YEAR(Apr_sv1+22)=Kalendārais_gads,MONTH(Apr_sv1+22)=4),Apr_sv1+22,\"\"),IF(AND(YEAR(Apr_sv1+29)=Kalendārais_gads,MONTH(Apr_sv1+29)=4),Apr_sv1+29,\"\"))","v":"2022-04-25"},{"$f":"IF(DAY(Apr_sv1)=1,IF(AND(YEAR(Apr_sv1+23)=Kalendārais_gads,MONTH(Apr_sv1+23)=4),Apr_sv1+23,\"\"),IF(AND(YEAR(Apr_sv1+30)=Kalendārais_gads,MONTH(Apr_sv1+30)=4),Apr_sv1+30,\"\"))","v":"2022-04-26"},{"$f":"IF(DAY(Apr_sv1)=1,IF(AND(YEAR(Apr_sv1+24)=Kalendārais_gads,MONTH(Apr_sv1+24)=4),Apr_sv1+24,\"\"),IF(AND(YEAR(Apr_sv1+31)=Kalendārais_gads,MONTH(Apr_sv1+31)=4),Apr_sv1+31,\"\"))","v":"2022-04-27"},{"$f":"IF(DAY(Apr_sv1)=1,IF(AND(YEAR(Apr_sv1+25)=Kalendārais_gads,MONTH(Apr_sv1+25)=4),Apr_sv1+25,\"\"),IF(AND(YEAR(Apr_sv1+32)=Kalendārais_gads,MONTH(Apr_sv1+32)=4),Apr_sv1+32,\"\"))","v":"2022-04-28"},{"$f":"IF(DAY(Apr_sv1)=1,IF(AND(YEAR(Apr_sv1+26)=Kalendārais_gads,MONTH(Apr_sv1+26)=4),Apr_sv1+26,\"\"),IF(AND(YEAR(Apr_sv1+33)=Kalendārais_gads,MONTH(Apr_sv1+33)=4),Apr_sv1+33,\"\"))","v":"2022-04-29"},{"$f":"IF(DAY(Apr_sv1)=1,IF(AND(YEAR(Apr_sv1+27)=Kalendārais_gads,MONTH(Apr_sv1+27)=4),Apr_sv1+27,\"\"),IF(AND(YEAR(Apr_sv1+34)=Kalendārais_gads,MONTH(Apr_sv1+34)=4),Apr_sv1+34,\"\"))","v":"2022-04-30"},{"$f":"IF(DAY(Apr_sv1)=1,IF(AND(YEAR(Apr_sv1+28)=Kalendārais_gads,MONTH(Apr_sv1+28)=4),Apr_sv1+28,\"\"),IF(AND(YEAR(Apr_sv1+35)=Kalendārais_gads,MONTH(Apr_sv1+35)=4),Apr_sv1+35,\"\"))","v":""}]
[null,null,{"$f":"IF(DAY(Mar_sv1)=1,IF(AND(YEAR(Mar_sv1+29)=Kalendārais_gads,MONTH(Mar_sv1+29)=3),Mar_sv1+29,\"\"),IF(AND(YEAR(Mar_sv1+36)=Kalendārais_gads,MONTH(Mar_sv1+36)=3),Mar_sv1+36,\"\"))","v":""},{"$f":"IF(DAY(Mar_sv1)=1,IF(AND(YEAR(Mar_sv1+30)=Kalendārais_gads,MONTH(Mar_sv1+30)=3),Mar_sv1+30,\"\"),IF(AND(YEAR(Mar_sv1+37)=Kalendārais_gads,MONTH(Mar_sv1+37)=3),Mar_sv1+37,\"\"))","v":""},{"$f":"IF(DAY(Mar_sv1)=1,IF(AND(YEAR(Mar_sv1+31)=Kalendārais_gads,MONTH(Mar_sv1+31)=3),Mar_sv1+31,\"\"),IF(AND(YEAR(Mar_sv1+38)=Kalendārais_gads,MONTH(Mar_sv1+38)=3),Mar_sv1+38,\"\"))","v":""},{"$f":"IF(DAY(Mar_sv1)=1,IF(AND(YEAR(Mar_sv1+32)=Kalendārais_gads,MONTH(Mar_sv1+32)=3),Mar_sv1+32,\"\"),IF(AND(YEAR(Mar_sv1+39)=Kalendārais_gads,MONTH(Mar_sv1+39)=3),Mar_sv1+39,\"\"))","v":""},{"$f":"IF(DAY(Mar_sv1)=1,IF(AND(YEAR(Mar_sv1+33)=Kalendārais_gads,MONTH(Mar_sv1+33)=3),Mar_sv1+33,\"\"),IF(AND(YEAR(Mar_sv1+40)=Kalendārais_gads,MONTH(Mar_sv1+40)=3),Mar_sv1+40,\"\"))","v":""},{"$f":"IF(DAY(Mar_sv1)=1,IF(AND(YEAR(Mar_sv1+34)=Kalendārais_gads,MONTH(Mar_sv1+34)=3),Mar_sv1+34,\"\"),IF(AND(YEAR(Mar_sv1+41)=Kalendārais_gads,MONTH(Mar_sv1+41)=3),Mar_sv1+41,\"\"))","v":""},{"$f":"IF(DAY(Mar_sv1)=1,IF(AND(YEAR(Mar_sv1+35)=Kalendārais_gads,MONTH(Mar_sv1+35)=3),Mar_sv1+35,\"\"),IF(AND(YEAR(Mar_sv1+42)=Kalendārais_gads,MONTH(Mar_sv1+42)=3),Mar_sv1+42,\"\"))","v":""},null,{"$f":"IF(DAY(Apr_sv1)=1,IF(AND(YEAR(Apr_sv1+29)=Kalendārais_gads,MONTH(Apr_sv1+29)=4),Apr_sv1+29,\"\"),IF(AND(YEAR(Apr_sv1+36)=Kalendārais_gads,MONTH(Apr_sv1+36)=4),Apr_sv1+36,\"\"))","v":""},{"$f":"IF(DAY(Apr_sv1)=1,IF(AND(YEAR(Apr_sv1+30)=Kalendārais_gads,MONTH(Apr_sv1+30)=4),Apr_sv1+30,\"\"),IF(AND(YEAR(Apr_sv1+37)=Kalendārais_gads,MONTH(Apr_sv1+37)=4),Apr_sv1+37,\"\"))","v":""},{"$f":"IF(DAY(Apr_sv1)=1,IF(AND(YEAR(Apr_sv1+31)=Kalendārais_gads,MONTH(Apr_sv1+31)=4),Apr_sv1+31,\"\"),IF(AND(YEAR(Apr_sv1+38)=Kalendārais_gads,MONTH(Apr_sv1+38)=4),Apr_sv1+38,\"\"))","v":""},{"$f":"IF(DAY(Apr_sv1)=1,IF(AND(YEAR(Apr_sv1+32)=Kalendārais_gads,MONTH(Apr_sv1+32)=4),Apr_sv1+32,\"\"),IF(AND(YEAR(Apr_sv1+39)=Kalendārais_gads,MONTH(Apr_sv1+39)=4),Apr_sv1+39,\"\"))","v":""},{"$f":"IF(DAY(Apr_sv1)=1,IF(AND(YEAR(Apr_sv1+33)=Kalendārais_gads,MONTH(Apr_sv1+33)=4),Apr_sv1+33,\"\"),IF(AND(YEAR(Apr_sv1+40)=Kalendārais_gads,MONTH(Apr_sv1+40)=4),Apr_sv1+40,\"\"))","v":""},{"$f":"IF(DAY(Apr_sv1)=1,IF(AND(YEAR(Apr_sv1+34)=Kalendārais_gads,MONTH(Apr_sv1+34)=4),Apr_sv1+34,\"\"),IF(AND(YEAR(Apr_sv1+41)=Kalendārais_gads,MONTH(Apr_sv1+41)=4),Apr_sv1+41,\"\"))","v":""},{"$f":"IF(DAY(Apr_sv1)=1,IF(AND(YEAR(Apr_sv1+35)=Kalendārais_gads,MONTH(Apr_sv1+35)=4),Apr_sv1+35,\"\"),IF(AND(YEAR(Apr_sv1+42)=Kalendārais_gads,MONTH(Apr_sv1+42)=4),Apr_sv1+42,\"\"))","v":""}]
[]
["Maija etiķete atrodas šūnā C21, bet jūnija etiķete — šūnā K21",null,"MAIJS",{"$nulls":7},"JŪNIJS"]
["Maija kalendāra tabula ir šūnu diapazonā C22–I28, bet jūnija kalendāra tabula — šūnu diapazonā K22 to Q28. Nākamais norādījums ir šūnā A30",null,"PR","OT","TR","CE","PK","SE","SV",null,"PR","OT","TR","CE","PK","SE","SV"]
[null,null,{"$f":"IF(DAY(Mai_sv1)=1,\"\",IF(AND(YEAR(Mai_sv1+1)=Kalendārais_gads,MONTH(Mai_sv1+1)=5),Mai_sv1+1,\"\"))","v":""},{"$f":"IF(DAY(Mai_sv1)=1,\"\",IF(AND(YEAR(Mai_sv1+2)=Kalendārais_gads,MONTH(Mai_sv1+2)=5),Mai_sv1+2,\"\"))","v":""},{"$f":"IF(DAY(Mai_sv1)=1,\"\",IF(AND(YEAR(Mai_sv1+3)=Kalendārais_gads,MONTH(Mai_sv1+3)=5),Mai_sv1+3,\"\"))","v":""},{"$f":"IF(DAY(Mai_sv1)=1,\"\",IF(AND(YEAR(Mai_sv1+4)=Kalendārais_gads,MONTH(Mai_sv1+4)=5),Mai_sv1+4,\"\"))","v":""},{"$f":"IF(DAY(Mai_sv1)=1,\"\",IF(AND(YEAR(Mai_sv1+5)=Kalendārais_gads,MONTH(Mai_sv1+5)=5),Mai_sv1+5,\"\"))","v":""},{"$f":"IF(DAY(Mai_sv1)=1,\"\",IF(AND(YEAR(Mai_sv1+6)=Kalendārais_gads,MONTH(Mai_sv1+6)=5),Mai_sv1+6,\"\"))","v":""},{"$f":"IF(DAY(Mai_sv1)=1,IF(AND(YEAR(Mai_sv1)=Kalendārais_gads,MONTH(Mai_sv1)=5),Mai_sv1,\"\"),IF(AND(YEAR(Mai_sv1+7)=Kalendārais_gads,MONTH(Mai_sv1+7)=5),Mai_sv1+7,\"\"))","v":"2022-05-01"},null,{"$f":"IF(DAY(Jūn_sv1)=1,\"\",IF(AND(YEAR(Jūn_sv1+1)=Kalendārais_gads,MONTH(Jūn_sv1+1)=6),Jūn_sv1+1,\"\"))","v":""},{"$f":"IF(DAY(Jūn_sv1)=1,\"\",IF(AND(YEAR(Jūn_sv1+2)=Kalendārais_gads,MONTH(Jūn_sv1+2)=6),Jūn_sv1+2,\"\"))","v":""},{"$f":"IF(DAY(Jūn_sv1)=1,\"\",IF(AND(YEAR(Jūn_sv1+3)=Kalendārais_gads,MONTH(Jūn_sv1+3)=6),Jūn_sv1+3,\"\"))","v":"2022-06-01"},{"$f":"IF(DAY(Jūn_sv1)=1,\"\",IF(AND(YEAR(Jūn_sv1+4)=Kalendārais_gads,MONTH(Jūn_sv1+4)=6),Jūn_sv1+4,\"\"))","v":"2022-06-02"},{"$f":"IF(DAY(Jūn_sv1)=1,\"\",IF(AND(YEAR(Jūn_sv1+5)=Kalendārais_gads,MONTH(Jūn_sv1+5)=6),Jūn_sv1+5,\"\"))","v":"2022-06-03"},{"$f":"IF(DAY(Jūn_sv1)=1,\"\",IF(AND(YEAR(Jūn_sv1+6)=Kalendārais_gads,MONTH(Jūn_sv1+6)=6),Jūn_sv1+6,\"\"))","v":"2022-06-04"},{"$f":"IF(DAY(Jūn_sv1)=1,IF(AND(YEAR(Jūn_sv1)=Kalendārais_gads,MONTH(Jūn_sv1)=6),Jūn_sv1,\"\"),IF(AND(YEAR(Jūn_sv1+7)=Kalendārais_gads,MONTH(Jūn_sv1+7)=6),Jūn_sv1+7,\"\"))","v":"2022-06-05"}]
[null,null,{"$f":"IF(DAY(Mai_sv1)=1,IF(AND(YEAR(Mai_sv1+1)=Kalendārais_gads,MONTH(Mai_sv1+1)=5),Mai_sv1+1,\"\"),IF(AND(YEAR(Mai_sv1+8)=Kalendārais_gads,MONTH(Mai_sv1+8)=5),Mai_sv1+8,\"\"))","v":"2022-05-02"},{"$f":"IF(DAY(Mai_sv1)=1,IF(AND(YEAR(Mai_sv1+2)=Kalendārais_gads,MONTH(Mai_sv1+2)=5),Mai_sv1+2,\"\"),IF(AND(YEAR(Mai_sv1+9)=Kalendārais_gads,MONTH(Mai_sv1+9)=5),Mai_sv1+9,\"\"))","v":"2022-05-03"},{"$f":"IF(DAY(Mai_sv1)=1,IF(AND(YEAR(Mai_sv1+3)=Kalendārais_gads,MONTH(Mai_sv1+3)=5),Mai_sv1+3,\"\"),IF(AND(YEAR(Mai_sv1+10)=Kalendārais_gads,MONTH(Mai_sv1+10)=5),Mai_sv1+10,\"\"))","v":"2022-05-04"},{"$f":"IF(DAY(Mai_sv1)=1,IF(AND(YEAR(Mai_sv1+4)=Kalendārais_gads,MONTH(Mai_sv1+4)=5),Mai_sv1+4,\"\"),IF(AND(YEAR(Mai_sv1+11)=Kalendārais_gads,MONTH(Mai_sv1+11)=5),Mai_sv1+11,\"\"))","v":"2022-05-05"},{"$f":"IF(DAY(Mai_sv1)=1,IF(AND(YEAR(Mai_sv1+5)=Kalendārais_gads,MONTH(Mai_sv1+5)=5),Mai_sv1+5,\"\"),IF(AND(YEAR(Mai_sv1+12)=Kalendārais_gads,MONTH(Mai_sv1+12)=5),Mai_sv1+12,\"\"))","v":"2022-05-06"},{"$f":"IF(DAY(Mai_sv1)=1,IF(AND(YEAR(Mai_sv1+6)=Kalendārais_gads,MONTH(Mai_sv1+6)=5),Mai_sv1+6,\"\"),IF(AND(YEAR(Mai_sv1+13)=Kalendārais_gads,MONTH(Mai_sv1+13)=5),Mai_sv1+13,\"\"))","v":"2022-05-07"},{"$f":"IF(DAY(Mai_sv1)=1,IF(AND(YEAR(Mai_sv1+7)=Kalendārais_gads,MONTH(Mai_sv1+7)=5),Mai_sv1+7,\"\"),IF(AND(YEAR(Mai_sv1+14)=Kalendārais_gads,MONTH(Mai_sv1+14)=5),Mai_sv1+14,\"\"))","v":"2022-05-08"},null,{"$f":"IF(DAY(Jūn_sv1)=1,IF(AND(YEAR(Jūn_sv1+1)=Kalendārais_gads,MONTH(Jūn_sv1+1)=6),Jūn_sv1+1,\"\"),IF(AND(YEAR(Jūn_sv1+8)=Kalendārais_gads,MONTH(Jūn_sv1+8)=6),Jūn_sv1+8,\"\"))","v":"2022-06-06"},{"$f":"IF(DAY(Jūn_sv1)=1,IF(AND(YEAR(Jūn_sv1+2)=Kalendārais_gads,MONTH(Jūn_sv1+2)=6),Jūn_sv1+2,\"\"),IF(AND(YEAR(Jūn_sv1+9)=Kalendārais_gads,MONTH(Jūn_sv1+9)=6),Jūn_sv1+9,\"\"))","v":"2022-06-07"},{"$f":"IF(DAY(Jūn_sv1)=1,IF(AND(YEAR(Jūn_sv1+3)=Kalendārais_gads,MONTH(Jūn_sv1+3)=6),Jūn_sv1+3,\"\"),IF(AND(YEAR(Jūn_sv1+10)=Kalendārais_gads,MONTH(Jūn_sv1+10)=6),Jūn_sv1+10,\"\"))","v":"2022-06-08"},{"$f":"IF(DAY(Jūn_sv1)=1,IF(AND(YEAR(Jūn_sv1+4)=Kalendārais_gads,MONTH(Jūn_sv1+4)=6),Jūn_sv1+4,\"\"),IF(AND(YEAR(Jūn_sv1+11)=Kalendārais_gads,MONTH(Jūn_sv1+11)=6),Jūn_sv1+11,\"\"))","v":"2022-06-09"},{"$f":"IF(DAY(Jūn_sv1)=1,IF(AND(YEAR(Jūn_sv1+5)=Kalendārais_gads,MONTH(Jūn_sv1+5)=6),Jūn_sv1+5,\"\"),IF(AND(YEAR(Jūn_sv1+12)=Kalendārais_gads,MONTH(Jūn_sv1+12)=6),Jūn_sv1+12,\"\"))","v":"2022-06-10"},{"$f":"IF(DAY(Jūn_sv1)=1,IF(AND(YEAR(Jūn_sv1+6)=Kalendārais_gads,MONTH(Jūn_sv1+6)=6),Jūn_sv1+6,\"\"),IF(AND(YEAR(Jūn_sv1+13)=Kalendārais_gads,MONTH(Jūn_sv1+13)=6),Jūn_sv1+13,\"\"))","v":"2022-06-11"},{"$f":"IF(DAY(Jūn_sv1)=1,IF(AND(YEAR(Jūn_sv1+7)=Kalendārais_gads,MONTH(Jūn_sv1+7)=6),Jūn_sv1+7,\"\"),IF(AND(YEAR(Jūn_sv1+14)=Kalendārais_gads,MONTH(Jūn_sv1+14)=6),Jūn_sv1+14,\"\"))","v":"2022-06-12"}]
[null,null,{"$f":"IF(DAY(Mai_sv1)=1,IF(AND(YEAR(Mai_sv1+8)=Kalendārais_gads,MONTH(Mai_sv1+8)=5),Mai_sv1+8,\"\"),IF(AND(YEAR(Mai_sv1+15)=Kalendārais_gads,MONTH(Mai_sv1+15)=5),Mai_sv1+15,\"\"))","v":"2022-05-09"},{"$f":"IF(DAY(Mai_sv1)=1,IF(AND(YEAR(Mai_sv1+9)=Kalendārais_gads,MONTH(Mai_sv1+9)=5),Mai_sv1+9,\"\"),IF(AND(YEAR(Mai_sv1+16)=Kalendārais_gads,MONTH(Mai_sv1+16)=5),Mai_sv1+16,\"\"))","v":"2022-05-10"},{"$f":"IF(DAY(Mai_sv1)=1,IF(AND(YEAR(Mai_sv1+10)=Kalendārais_gads,MONTH(Mai_sv1+10)=5),Mai_sv1+10,\"\"),IF(AND(YEAR(Mai_sv1+17)=Kalendārais_gads,MONTH(Mai_sv1+17)=5),Mai_sv1+17,\"\"))","v":"2022-05-11"},{"$f":"IF(DAY(Mai_sv1)=1,IF(AND(YEAR(Mai_sv1+11)=Kalendārais_gads,MONTH(Mai_sv1+11)=5),Mai_sv1+11,\"\"),IF(AND(YEAR(Mai_sv1+18)=Kalendārais_gads,MONTH(Mai_sv1+18)=5),Mai_sv1+18,\"\"))","v":"2022-05-12"},{"$f":"IF(DAY(Mai_sv1)=1,IF(AND(YEAR(Mai_sv1+12)=Kalendārais_gads,MONTH(Mai_sv1+12)=5),Mai_sv1+12,\"\"),IF(AND(YEAR(Mai_sv1+19)=Kalendārais_gads,MONTH(Mai_sv1+19)=5),Mai_sv1+19,\"\"))","v":"2022-05-13"},{"$f":"IF(DAY(Mai_sv1)=1,IF(AND(YEAR(Mai_sv1+13)=Kalendārais_gads,MONTH(Mai_sv1+13)=5),Mai_sv1+13,\"\"),IF(AND(YEAR(Mai_sv1+20)=Kalendārais_gads,MONTH(Mai_sv1+20)=5),Mai_sv1+20,\"\"))","v":"2022-05-14"},{"$f":"IF(DAY(Mai_sv1)=1,IF(AND(YEAR(Mai_sv1+14)=Kalendārais_gads,MONTH(Mai_sv1+14)=5),Mai_sv1+14,\"\"),IF(AND(YEAR(Mai_sv1+21)=Kalendārais_gads,MONTH(Mai_sv1+21)=5),Mai_sv1+21,\"\"))","v":"2022-05-15"},null,{"$f":"IF(DAY(Jūn_sv1)=1,IF(AND(YEAR(Jūn_sv1+8)=Kalendārais_gads,MONTH(Jūn_sv1+8)=6),Jūn_sv1+8,\"\"),IF(AND(YEAR(Jūn_sv1+15)=Kalendārais_gads,MONTH(Jūn_sv1+15)=6),Jūn_sv1+15,\"\"))","v":"2022-06-13"},{"$f":"IF(DAY(Jūn_sv1)=1,IF(AND(YEAR(Jūn_sv1+9)=Kalendārais_gads,MONTH(Jūn_sv1+9)=6),Jūn_sv1+9,\"\"),IF(AND(YEAR(Jūn_sv1+16)=Kalendārais_gads,MONTH(Jūn_sv1+16)=6),Jūn_sv1+16,\"\"))","v":"2022-06-14"},{"$f":"IF(DAY(Jūn_sv1)=1,IF(AND(YEAR(Jūn_sv1+10)=Kalendārais_gads,MONTH(Jūn_sv1+10)=6),Jūn_sv1+10,\"\"),IF(AND(YEAR(Jūn_sv1+17)=Kalendārais_gads,MONTH(Jūn_sv1+17)=6),Jūn_sv1+17,\"\"))","v":"2022-06-15"},{"$f":"IF(DAY(Jūn_sv1)=1,IF(AND(YEAR(Jūn_sv1+11)=Kalendārais_gads,MONTH(Jūn_sv1+11)=6),Jūn_sv1+11,\"\"),IF(AND(YEAR(Jūn_sv1+18)=Kalendārais_gads,MONTH(Jūn_sv1+18)=6),Jūn_sv1+18,\"\"))","v":"2022-06-16"},{"$f":"IF(DAY(Jūn_sv1)=1,IF(AND(YEAR(Jūn_sv1+12)=Kalendārais_gads,MONTH(Jūn_sv1+12)=6),Jūn_sv1+12,\"\"),IF(AND(YEAR(Jūn_sv1+19)=Kalendārais_gads,MONTH(Jūn_sv1+19)=6),Jūn_sv1+19,\"\"))","v":"2022-06-17"},{"$f":"IF(DAY(Jūn_sv1)=1,IF(AND(YEAR(Jūn_sv1+13)=Kalendārais_gads,MONTH(Jūn_sv1+13)=6),Jūn_sv1+13,\"\"),IF(AND(YEAR(Jūn_sv1+20)=Kalendārais_gads,MONTH(Jūn_sv1+20)=6),Jūn_sv1+20,\"\"))","v":"2022-06-18"},{"$f":"IF(DAY(Jūn_sv1)=1,IF(AND(YEAR(Jūn_sv1+14)=Kalendārais_gads,MONTH(Jūn_sv1+14)=6),Jūn_sv1+14,\"\"),IF(AND(YEAR(Jūn_sv1+21)=Kalendārais_gads,MONTH(Jūn_sv1+21)=6),Jūn_sv1+21,\"\"))","v":"2022-06-19"}]
[null,null,{"$f":"IF(DAY(Mai_sv1)=1,IF(AND(YEAR(Mai_sv1+15)=Kalendārais_gads,MONTH(Mai_sv1+15)=5),Mai_sv1+15,\"\"),IF(AND(YEAR(Mai_sv1+22)=Kalendārais_gads,MONTH(Mai_sv1+22)=5),Mai_sv1+22,\"\"))","v":"2022-05-16"},{"$f":"IF(DAY(Mai_sv1)=1,IF(AND(YEAR(Mai_sv1+16)=Kalendārais_gads,MONTH(Mai_sv1+16)=5),Mai_sv1+16,\"\"),IF(AND(YEAR(Mai_sv1+23)=Kalendārais_gads,MONTH(Mai_sv1+23)=5),Mai_sv1+23,\"\"))","v":"2022-05-17"},{"$f":"IF(DAY(Mai_sv1)=1,IF(AND(YEAR(Mai_sv1+17)=Kalendārais_gads,MONTH(Mai_sv1+17)=5),Mai_sv1+17,\"\"),IF(AND(YEAR(Mai_sv1+24)=Kalendārais_gads,MONTH(Mai_sv1+24)=5),Mai_sv1+24,\"\"))","v":"2022-05-18"},{"$f":"IF(DAY(Mai_sv1)=1,IF(AND(YEAR(Mai_sv1+18)=Kalendārais_gads,MONTH(Mai_sv1+18)=5),Mai_sv1+18,\"\"),IF(AND(YEAR(Mai_sv1+25)=Kalendārais_gads,MONTH(Mai_sv1+25)=5),Mai_sv1+25,\"\"))","v":"2022-05-19"},{"$f":"IF(DAY(Mai_sv1)=1,IF(AND(YEAR(Mai_sv1+19)=Kalendārais_gads,MONTH(Mai_sv1+19)=5),Mai_sv1+19,\"\"),IF(AND(YEAR(Mai_sv1+26)=Kalendārais_gads,MONTH(Mai_sv1+26)=5),Mai_sv1+26,\"\"))","v":"2022-05-20"},{"$f":"IF(DAY(Mai_sv1)=1,IF(AND(YEAR(Mai_sv1+20)=Kalendārais_gads,MONTH(Mai_sv1+20)=5),Mai_sv1+20,\"\"),IF(AND(YEAR(Mai_sv1+27)=Kalendārais_gads,MONTH(Mai_sv1+27)=5),Mai_sv1+27,\"\"))","v":"2022-05-21"},{"$f":"IF(DAY(Mai_sv1)=1,IF(AND(YEAR(Mai_sv1+21)=Kalendārais_gads,MONTH(Mai_sv1+21)=5),Mai_sv1+21,\"\"),IF(AND(YEAR(Mai_sv1+28)=Kalendārais_gads,MONTH(Mai_sv1+28)=5),Mai_sv1+28,\"\"))","v":"2022-05-22"},null,{"$f":"IF(DAY(Jūn_sv1)=1,IF(AND(YEAR(Jūn_sv1+15)=Kalendārais_gads,MONTH(Jūn_sv1+15)=6),Jūn_sv1+15,\"\"),IF(AND(YEAR(Jūn_sv1+22)=Kalendārais_gads,MONTH(Jūn_sv1+22)=6),Jūn_sv1+22,\"\"))","v":"2022-06-20"},{"$f":"IF(DAY(Jūn_sv1)=1,IF(AND(YEAR(Jūn_sv1+16)=Kalendārais_gads,MONTH(Jūn_sv1+16)=6),Jūn_sv1+16,\"\"),IF(AND(YEAR(Jūn_sv1+23)=Kalendārais_gads,MONTH(Jūn_sv1+23)=6),Jūn_sv1+23,\"\"))","v":"2022-06-21"},{"$f":"IF(DAY(Jūn_sv1)=1,IF(AND(YEAR(Jūn_sv1+17)=Kalendārais_gads,MONTH(Jūn_sv1+17)=6),Jūn_sv1+17,\"\"),IF(AND(YEAR(Jūn_sv1+24)=Kalendārais_gads,MONTH(Jūn_sv1+24)=6),Jūn_sv1+24,\"\"))","v":"2022-06-22"},{"$f":"IF(DAY(Jūn_sv1)=1,IF(AND(YEAR(Jūn_sv1+18)=Kalendārais_gads,MONTH(Jūn_sv1+18)=6),Jūn_sv1+18,\"\"),IF(AND(YEAR(Jūn_sv1+25)=Kalendārais_gads,MONTH(Jūn_sv1+25)=6),Jūn_sv1+25,\"\"))","v":"2022-06-23"},{"$f":"IF(DAY(Jūn_sv1)=1,IF(AND(YEAR(Jūn_sv1+19)=Kalendārais_gads,MONTH(Jūn_sv1+19)=6),Jūn_sv1+19,\"\"),IF(AND(YEAR(Jūn_sv1+26)=Kalendārais_gads,MONTH(Jūn_sv1+26)=6),Jūn_sv1+26,\"\"))","v":"2022-06-24"},{"$f":"IF(DAY(Jūn_sv1)=1,IF(AND(YEAR(Jūn_sv1+20)=Kalendārais_gads,MONTH(Jūn_sv1+20)=6),Jūn_sv1+20,\"\"),IF(AND(YEAR(Jūn_sv1+27)=Kalendārais_gads,MONTH(Jūn_sv1+27)=6),Jūn_sv1+27,\"\"))","v":"2022-06-25"},{"$f":"IF(DAY(Jūn_sv1)=1,IF(AND(YEAR(Jūn_sv1+21)=Kalendārais_gads,MONTH(Jūn_sv1+21)=6),Jūn_sv1+21,\"\"),IF(AND(YEAR(Jūn_sv1+28)=Kalendārais_gads,MONTH(Jūn_sv1+28)=6),Jūn_sv1+28,\"\"))","v":"2022-06-26"}]
[null,null,{"$f":"IF(DAY(Mai_sv1)=1,IF(AND(YEAR(Mai_sv1+22)=Kalendārais_gads,MONTH(Mai_sv1+22)=5),Mai_sv1+22,\"\"),IF(AND(YEAR(Mai_sv1+29)=Kalendārais_gads,MONTH(Mai_sv1+29)=5),Mai_sv1+29,\"\"))","v":"2022-05-23"},{"$f":"IF(DAY(Mai_sv1)=1,IF(AND(YEAR(Mai_sv1+23)=Kalendārais_gads,MONTH(Mai_sv1+23)=5),Mai_sv1+23,\"\"),IF(AND(YEAR(Mai_sv1+30)=Kalendārais_gads,MONTH(Mai_sv1+30)=5),Mai_sv1+30,\"\"))","v":"2022-05-24"},{"$f":"IF(DAY(Mai_sv1)=1,IF(AND(YEAR(Mai_sv1+24)=Kalendārais_gads,MONTH(Mai_sv1+24)=5),Mai_sv1+24,\"\"),IF(AND(YEAR(Mai_sv1+31)=Kalendārais_gads,MONTH(Mai_sv1+31)=5),Mai_sv1+31,\"\"))","v":"2022-05-25"},{"$f":"IF(DAY(Mai_sv1)=1,IF(AND(YEAR(Mai_sv1+25)=Kalendārais_gads,MONTH(Mai_sv1+25)=5),Mai_sv1+25,\"\"),IF(AND(YEAR(Mai_sv1+32)=Kalendārais_gads,MONTH(Mai_sv1+32)=5),Mai_sv1+32,\"\"))","v":"2022-05-26"},{"$f":"IF(DAY(Mai_sv1)=1,IF(AND(YEAR(Mai_sv1+26)=Kalendārais_gads,MONTH(Mai_sv1+26)=5),Mai_sv1+26,\"\"),IF(AND(YEAR(Mai_sv1+33)=Kalendārais_gads,MONTH(Mai_sv1+33)=5),Mai_sv1+33,\"\"))","v":"2022-05-27"},{"$f":"IF(DAY(Mai_sv1)=1,IF(AND(YEAR(Mai_sv1+27)=Kalendārais_gads,MONTH(Mai_sv1+27)=5),Mai_sv1+27,\"\"),IF(AND(YEAR(Mai_sv1+34)=Kalendārais_gads,MONTH(Mai_sv1+34)=5),Mai_sv1+34,\"\"))","v":"2022-05-28"},{"$f":"IF(DAY(Mai_sv1)=1,IF(AND(YEAR(Mai_sv1+28)=Kalendārais_gads,MONTH(Mai_sv1+28)=5),Mai_sv1+28,\"\"),IF(AND(YEAR(Mai_sv1+35)=Kalendārais_gads,MONTH(Mai_sv1+35)=5),Mai_sv1+35,\"\"))","v":"2022-05-29"},null,{"$f":"IF(DAY(Jūn_sv1)=1,IF(AND(YEAR(Jūn_sv1+22)=Kalendārais_gads,MONTH(Jūn_sv1+22)=6),Jūn_sv1+22,\"\"),IF(AND(YEAR(Jūn_sv1+29)=Kalendārais_gads,MONTH(Jūn_sv1+29)=6),Jūn_sv1+29,\"\"))","v":"2022-06-27"},{"$f":"IF(DAY(Jūn_sv1)=1,IF(AND(YEAR(Jūn_sv1+23)=Kalendārais_gads,MONTH(Jūn_sv1+23)=6),Jūn_sv1+23,\"\"),IF(AND(YEAR(Jūn_sv1+30)=Kalendārais_gads,MONTH(Jūn_sv1+30)=6),Jūn_sv1+30,\"\"))","v":"2022-06-28"},{"$f":"IF(DAY(Jūn_sv1)=1,IF(AND(YEAR(Jūn_sv1+24)=Kalendārais_gads,MONTH(Jūn_sv1+24)=6),Jūn_sv1+24,\"\"),IF(AND(YEAR(Jūn_sv1+31)=Kalendārais_gads,MONTH(Jūn_sv1+31)=6),Jūn_sv1+31,\"\"))","v":"2022-06-29"},{"$f":"IF(DAY(Jūn_sv1)=1,IF(AND(YEAR(Jūn_sv1+25)=Kalendārais_gads,MONTH(Jūn_sv1+25)=6),Jūn_sv1+25,\"\"),IF(AND(YEAR(Jūn_sv1+32)=Kalendārais_gads,MONTH(Jūn_sv1+32)=6),Jūn_sv1+32,\"\"))","v":"2022-06-30"},{"$f":"IF(DAY(Jūn_sv1)=1,IF(AND(YEAR(Jūn_sv1+26)=Kalendārais_gads,MONTH(Jūn_sv1+26)=6),Jūn_sv1+26,\"\"),IF(AND(YEAR(Jūn_sv1+33)=Kalendārais_gads,MONTH(Jūn_sv1+33)=6),Jūn_sv1+33,\"\"))","v":""},{"$f":"IF(DAY(Jūn_sv1)=1,IF(AND(YEAR(Jūn_sv1+27)=Kalendārais_gads,MONTH(Jūn_sv1+27)=6),Jūn_sv1+27,\"\"),IF(AND(YEAR(Jūn_sv1+34)=Kalendārais_gads,MONTH(Jūn_sv1+34)=6),Jūn_sv1+34,\"\"))","v":""},{"$f":"IF(DAY(Jūn_sv1)=1,IF(AND(YEAR(Jūn_sv1+28)=Kalendārais_gads,MONTH(Jūn_sv1+28)=6),Jūn_sv1+28,\"\"),IF(AND(YEAR(Jūn_sv1+35)=Kalendārais_gads,MONTH(Jūn_sv1+35)=6),Jūn_sv1+35,\"\"))","v":""}]
[null,null,{"$f":"IF(DAY(Mai_sv1)=1,IF(AND(YEAR(Mai_sv1+29)=Kalendārais_gads,MONTH(Mai_sv1+29)=5),Mai_sv1+29,\"\"),IF(AND(YEAR(Mai_sv1+36)=Kalendārais_gads,MONTH(Mai_sv1+36)=5),Mai_sv1+36,\"\"))","v":"2022-05-30"},{"$f":"IF(DAY(Mai_sv1)=1,IF(AND(YEAR(Mai_sv1+30)=Kalendārais_gads,MONTH(Mai_sv1+30)=5),Mai_sv1+30,\"\"),IF(AND(YEAR(Mai_sv1+37)=Kalendārais_gads,MONTH(Mai_sv1+37)=5),Mai_sv1+37,\"\"))","v":"2022-05-31"},{"$f":"IF(DAY(Mai_sv1)=1,IF(AND(YEAR(Mai_sv1+31)=Kalendārais_gads,MONTH(Mai_sv1+31)=5),Mai_sv1+31,\"\"),IF(AND(YEAR(Mai_sv1+38)=Kalendārais_gads,MONTH(Mai_sv1+38)=5),Mai_sv1+38,\"\"))","v":""},{"$f":"IF(DAY(Mai_sv1)=1,IF(AND(YEAR(Mai_sv1+32)=Kalendārais_gads,MONTH(Mai_sv1+32)=5),Mai_sv1+32,\"\"),IF(AND(YEAR(Mai_sv1+39)=Kalendārais_gads,MONTH(Mai_sv1+39)=5),Mai_sv1+39,\"\"))","v":""},{"$f":"IF(DAY(Mai_sv1)=1,IF(AND(YEAR(Mai_sv1+33)=Kalendārais_gads,MONTH(Mai_sv1+33)=5),Mai_sv1+33,\"\"),IF(AND(YEAR(Mai_sv1+40)=Kalendārais_gads,MONTH(Mai_sv1+40)=5),Mai_sv1+40,\"\"))","v":""},{"$f":"IF(DAY(Mai_sv1)=1,IF(AND(YEAR(Mai_sv1+34)=Kalendārais_gads,MONTH(Mai_sv1+34)=5),Mai_sv1+34,\"\"),IF(AND(YEAR(Mai_sv1+41)=Kalendārais_gads,MONTH(Mai_sv1+41)=5),Mai_sv1+41,\"\"))","v":""},{"$f":"IF(DAY(Mai_sv1)=1,IF(AND(YEAR(Mai_sv1+35)=Kalendārais_gads,MONTH(Mai_sv1+35)=5),Mai_sv1+35,\"\"),IF(AND(YEAR(Mai_sv1+42)=Kalendārais_gads,MONTH(Mai_sv1+42)=5),Mai_sv1+42,\"\"))","v":""},null,{"$f":"IF(DAY(Jūn_sv1)=1,IF(AND(YEAR(Jūn_sv1+29)=Kalendārais_gads,MONTH(Jūn_sv1+29)=6),Jūn_sv1+29,\"\"),IF(AND(YEAR(Jūn_sv1+36)=Kalendārais_gads,MONTH(Jūn_sv1+36)=6),Jūn_sv1+36,\"\"))","v":""},{"$f":"IF(DAY(Jūn_sv1)=1,IF(AND(YEAR(Jūn_sv1+30)=Kalendārais_gads,MONTH(Jūn_sv1+30)=6),Jūn_sv1+30,\"\"),IF(AND(YEAR(Jūn_sv1+37)=Kalendārais_gads,MONTH(Jūn_sv1+37)=6),Jūn_sv1+37,\"\"))","v":""},{"$f":"IF(DAY(Jūn_sv1)=1,IF(AND(YEAR(Jūn_sv1+31)=Kalendārais_gads,MONTH(Jūn_sv1+31)=6),Jūn_sv1+31,\"\"),IF(AND(YEAR(Jūn_sv1+38)=Kalendārais_gads,MONTH(Jūn_sv1+38)=6),Jūn_sv1+38,\"\"))","v":""},{"$f":"IF(DAY(Jūn_sv1)=1,IF(AND(YEAR(Jūn_sv1+32)=Kalendārais_gads,MONTH(Jūn_sv1+32)=6),Jūn_sv1+32,\"\"),IF(AND(YEAR(Jūn_sv1+39)=Kalendārais_gads,MONTH(Jūn_sv1+39)=6),Jūn_sv1+39,\"\"))","v":""},{"$f":"IF(DAY(Jūn_sv1)=1,IF(AND(YEAR(Jūn_sv1+33)=Kalendārais_gads,MONTH(Jūn_sv1+33)=6),Jūn_sv1+33,\"\"),IF(AND(YEAR(Jūn_sv1+40)=Kalendārais_gads,MONTH(Jūn_sv1+40)=6),Jūn_sv1+40,\"\"))","v":""},{"$f":"IF(DAY(Jūn_sv1)=1,IF(AND(YEAR(Jūn_sv1+34)=Kalendārais_gads,MONTH(Jūn_sv1+34)=6),Jūn_sv1+34,\"\"),IF(AND(YEAR(Jūn_sv1+41)=Kalendārais_gads,MONTH(Jūn_sv1+41)=6),Jūn_sv1+41,\"\"))","v":""},{"$f":"IF(DAY(Jūn_sv1)=1,IF(AND(YEAR(Jūn_sv1+35)=Kalendārais_gads,MONTH(Jūn_sv1+35)=6),Jūn_sv1+35,\"\"),IF(AND(YEAR(Jūn_sv1+42)=Kalendārais_gads,MONTH(Jūn_sv1+42)=6),Jūn_sv1+42,\"\"))","v":""}]
[]
["Jūlija etiķete atrodas šūnā C30, bet augusta etiķete — šūnā K30",null,"JŪLIJS",{"$nulls":7},"AUGUSTS"]
["Jūlija kalendāra tabula ir šūnu diapazonā C31–I37, bet augusta kalendāra tabula — šūnu diapazonā K31 to Q37. Nākamais norādījums ir šūnā A39",null,"PR","OT","TR","CE","PK","SE","SV",null,"PR","OT","TR","CE","PK","SE","SV"]
[null,null,{"$f":"IF(DAY(Jūl_sv1)=1,\"\",IF(AND(YEAR(Jūl_sv1+1)=Kalendārais_gads,MONTH(Jūl_sv1+1)=7),Jūl_sv1+1,\"\"))","v":""},{"$f":"IF(DAY(Jūl_sv1)=1,\"\",IF(AND(YEAR(Jūl_sv1+2)=Kalendārais_gads,MONTH(Jūl_sv1+2)=7),Jūl_sv1+2,\"\"))","v":""},{"$f":"IF(DAY(Jūl_sv1)=1,\"\",IF(AND(YEAR(Jūl_sv1+3)=Kalendārais_gads,MONTH(Jūl_sv1+3)=7),Jūl_sv1+3,\"\"))","v":""},{"$f":"IF(DAY(Jūl_sv1)=1,\"\",IF(AND(YEAR(Jūl_sv1+4)=Kalendārais_gads,MONTH(Jūl_sv1+4)=7),Jūl_sv1+4,\"\"))","v":""},{"$f":"IF(DAY(Jūl_sv1)=1,\"\",IF(AND(YEAR(Jūl_sv1+5)=Kalendārais_gads,MONTH(Jūl_sv1+5)=7),Jūl_sv1+5,\"\"))","v":"2022-07-01"},{"$f":"IF(DAY(Jūl_sv1)=1,\"\",IF(AND(YEAR(Jūl_sv1+6)=Kalendārais_gads,MONTH(Jūl_sv1+6)=7),Jūl_sv1+6,\"\"))","v":"2022-07-02"},{"$f":"IF(DAY(Jūl_sv1)=1,IF(AND(YEAR(Jūl_sv1)=Kalendārais_gads,MONTH(Jūl_sv1)=7),Jūl_sv1,\"\"),IF(AND(YEAR(Jūl_sv1+7)=Kalendārais_gads,MONTH(Jūl_sv1+7)=7),Jūl_sv1+7,\"\"))","v":"2022-07-03"},null,{"$f":"IF(DAY(Aug_sv1)=1,\"\",IF(AND(YEAR(Aug_sv1+1)=Kalendārais_gads,MONTH(Aug_sv1+1)=8),Aug_sv1+1,\"\"))","v":"2022-08-01"},{"$f":"IF(DAY(Aug_sv1)=1,\"\",IF(AND(YEAR(Aug_sv1+2)=Kalendārais_gads,MONTH(Aug_sv1+2)=8),Aug_sv1+2,\"\"))","v":"2022-08-02"},{"$f":"IF(DAY(Aug_sv1)=1,\"\",IF(AND(YEAR(Aug_sv1+3)=Kalendārais_gads,MONTH(Aug_sv1+3)=8),Aug_sv1+3,\"\"))","v":"2022-08-03"},{"$f":"IF(DAY(Aug_sv1)=1,\"\",IF(AND(YEAR(Aug_sv1+4)=Kalendārais_gads,MONTH(Aug_sv1+4)=8),Aug_sv1+4,\"\"))","v":"2022-08-04"},{"$f":"IF(DAY(Aug_sv1)=1,\"\",IF(AND(YEAR(Aug_sv1+5)=Kalendārais_gads,MONTH(Aug_sv1+5)=8),Aug_sv1+5,\"\"))","v":"2022-08-05"},{"$f":"IF(DAY(Aug_sv1)=1,\"\",IF(AND(YEAR(Aug_sv1+6)=Kalendārais_gads,MONTH(Aug_sv1+6)=8),Aug_sv1+6,\"\"))","v":"2022-08-06"},{"$f":"IF(DAY(Aug_sv1)=1,IF(AND(YEAR(Aug_sv1)=Kalendārais_gads,MONTH(Aug_sv1)=8),Aug_sv1,\"\"),IF(AND(YEAR(Aug_sv1+7)=Kalendārais_gads,MONTH(Aug_sv1+7)=8),Aug_sv1+7,\"\"))","v":"2022-08-07"}]
[null,null,{"$f":"IF(DAY(Jūl_sv1)=1,IF(AND(YEAR(Jūl_sv1+1)=Kalendārais_gads,MONTH(Jūl_sv1+1)=7),Jūl_sv1+1,\"\"),IF(AND(YEAR(Jūl_sv1+8)=Kalendārais_gads,MONTH(Jūl_sv1+8)=7),Jūl_sv1+8,\"\"))","v":"2022-07-04"},{"$f":"IF(DAY(Jūl_sv1)=1,IF(AND(YEAR(Jūl_sv1+2)=Kalendārais_gads,MONTH(Jūl_sv1+2)=7),Jūl_sv1+2,\"\"),IF(AND(YEAR(Jūl_sv1+9)=Kalendārais_gads,MONTH(Jūl_sv1+9)=7),Jūl_sv1+9,\"\"))","v":"2022-07-05"},{"$f":"IF(DAY(Jūl_sv1)=1,IF(AND(YEAR(Jūl_sv1+3)=Kalendārais_gads,MONTH(Jūl_sv1+3)=7),Jūl_sv1+3,\"\"),IF(AND(YEAR(Jūl_sv1+10)=Kalendārais_gads,MONTH(Jūl_sv1+10)=7),Jūl_sv1+10,\"\"))","v":"2022-07-06"},{"$f":"IF(DAY(Jūl_sv1)=1,IF(AND(YEAR(Jūl_sv1+4)=Kalendārais_gads,MONTH(Jūl_sv1+4)=7),Jūl_sv1+4,\"\"),IF(AND(YEAR(Jūl_sv1+11)=Kalendārais_gads,MONTH(Jūl_sv1+11)=7),Jūl_sv1+11,\"\"))","v":"2022-07-07"},{"$f":"IF(DAY(Jūl_sv1)=1,IF(AND(YEAR(Jūl_sv1+5)=Kalendārais_gads,MONTH(Jūl_sv1+5)=7),Jūl_sv1+5,\"\"),IF(AND(YEAR(Jūl_sv1+12)=Kalendārais_gads,MONTH(Jūl_sv1+12)=7),Jūl_sv1+12,\"\"))","v":"2022-07-08"},{"$f":"IF(DAY(Jūl_sv1)=1,IF(AND(YEAR(Jūl_sv1+6)=Kalendārais_gads,MONTH(Jūl_sv1+6)=7),Jūl_sv1+6,\"\"),IF(AND(YEAR(Jūl_sv1+13)=Kalendārais_gads,MONTH(Jūl_sv1+13)=7),Jūl_sv1+13,\"\"))","v":"2022-07-09"},{"$f":"IF(DAY(Jūl_sv1)=1,IF(AND(YEAR(Jūl_sv1+7)=Kalendārais_gads,MONTH(Jūl_sv1+7)=7),Jūl_sv1+7,\"\"),IF(AND(YEAR(Jūl_sv1+14)=Kalendārais_gads,MONTH(Jūl_sv1+14)=7),Jūl_sv1+14,\"\"))","v":"2022-07-10"},null,{"$f":"IF(DAY(Aug_sv1)=1,IF(AND(YEAR(Aug_sv1+1)=Kalendārais_gads,MONTH(Aug_sv1+1)=8),Aug_sv1+1,\"\"),IF(AND(YEAR(Aug_sv1+8)=Kalendārais_gads,MONTH(Aug_sv1+8)=8),Aug_sv1+8,\"\"))","v":"2022-08-08"},{"$f":"IF(DAY(Aug_sv1)=1,IF(AND(YEAR(Aug_sv1+2)=Kalendārais_gads,MONTH(Aug_sv1+2)=8),Aug_sv1+2,\"\"),IF(AND(YEAR(Aug_sv1+9)=Kalendārais_gads,MONTH(Aug_sv1+9)=8),Aug_sv1+9,\"\"))","v":"2022-08-09"},{"$f":"IF(DAY(Aug_sv1)=1,IF(AND(YEAR(Aug_sv1+3)=Kalendārais_gads,MONTH(Aug_sv1+3)=8),Aug_sv1+3,\"\"),IF(AND(YEAR(Aug_sv1+10)=Kalendārais_gads,MONTH(Aug_sv1+10)=8),Aug_sv1+10,\"\"))","v":"2022-08-10"},{"$f":"IF(DAY(Aug_sv1)=1,IF(AND(YEAR(Aug_sv1+4)=Kalendārais_gads,MONTH(Aug_sv1+4)=8),Aug_sv1+4,\"\"),IF(AND(YEAR(Aug_sv1+11)=Kalendārais_gads,MONTH(Aug_sv1+11)=8),Aug_sv1+11,\"\"))","v":"2022-08-11"},{"$f":"IF(DAY(Aug_sv1)=1,IF(AND(YEAR(Aug_sv1+5)=Kalendārais_gads,MONTH(Aug_sv1+5)=8),Aug_sv1+5,\"\"),IF(AND(YEAR(Aug_sv1+12)=Kalendārais_gads,MONTH(Aug_sv1+12)=8),Aug_sv1+12,\"\"))","v":"2022-08-12"},{"$f":"IF(DAY(Aug_sv1)=1,IF(AND(YEAR(Aug_sv1+6)=Kalendārais_gads,MONTH(Aug_sv1+6)=8),Aug_sv1+6,\"\"),IF(AND(YEAR(Aug_sv1+13)=Kalendārais_gads,MONTH(Aug_sv1+13)=8),Aug_sv1+13,\"\"))","v":"2022-08-13"},{"$f":"IF(DAY(Aug_sv1)=1,IF(AND(YEAR(Aug_sv1+7)=Kalendārais_gads,MONTH(Aug_sv1+7)=8),Aug_sv1+7,\"\"),IF(AND(YEAR(Aug_sv1+14)=Kalendārais_gads,MONTH(Aug_sv1+14)=8),Aug_sv1+14,\"\"))","v":"2022-08-14"}]
[null,null,{"$f":"IF(DAY(Jūl_sv1)=1,IF(AND(YEAR(Jūl_sv1+8)=Kalendārais_gads,MONTH(Jūl_sv1+8)=7),Jūl_sv1+8,\"\"),IF(AND(YEAR(Jūl_sv1+15)=Kalendārais_gads,MONTH(Jūl_sv1+15)=7),Jūl_sv1+15,\"\"))","v":"2022-07-11"},{"$f":"IF(DAY(Jūl_sv1)=1,IF(AND(YEAR(Jūl_sv1+9)=Kalendārais_gads,MONTH(Jūl_sv1+9)=7),Jūl_sv1+9,\"\"),IF(AND(YEAR(Jūl_sv1+16)=Kalendārais_gads,MONTH(Jūl_sv1+16)=7),Jūl_sv1+16,\"\"))","v":"2022-07-12"},{"$f":"IF(DAY(Jūl_sv1)=1,IF(AND(YEAR(Jūl_sv1+10)=Kalendārais_gads,MONTH(Jūl_sv1+10)=7),Jūl_sv1+10,\"\"),IF(AND(YEAR(Jūl_sv1+17)=Kalendārais_gads,MONTH(Jūl_sv1+17)=7),Jūl_sv1+17,\"\"))","v":"2022-07-13"},{"$f":"IF(DAY(Jūl_sv1)=1,IF(AND(YEAR(Jūl_sv1+11)=Kalendārais_gads,MONTH(Jūl_sv1+11)=7),Jūl_sv1+11,\"\"),IF(AND(YEAR(Jūl_sv1+18)=Kalendārais_gads,MONTH(Jūl_sv1+18)=7),Jūl_sv1+18,\"\"))","v":"2022-07-14"},{"$f":"IF(DAY(Jūl_sv1)=1,IF(AND(YEAR(Jūl_sv1+12)=Kalendārais_gads,MONTH(Jūl_sv1+12)=7),Jūl_sv1+12,\"\"),IF(AND(YEAR(Jūl_sv1+19)=Kalendārais_gads,MONTH(Jūl_sv1+19)=7),Jūl_sv1+19,\"\"))","v":"2022-07-15"},{"$f":"IF(DAY(Jūl_sv1)=1,IF(AND(YEAR(Jūl_sv1+13)=Kalendārais_gads,MONTH(Jūl_sv1+13)=7),Jūl_sv1+13,\"\"),IF(AND(YEAR(Jūl_sv1+20)=Kalendārais_gads,MONTH(Jūl_sv1+20)=7),Jūl_sv1+20,\"\"))","v":"2022-07-16"},{"$f":"IF(DAY(Jūl_sv1)=1,IF(AND(YEAR(Jūl_sv1+14)=Kalendārais_gads,MONTH(Jūl_sv1+14)=7),Jūl_sv1+14,\"\"),IF(AND(YEAR(Jūl_sv1+21)=Kalendārais_gads,MONTH(Jūl_sv1+21)=7),Jūl_sv1+21,\"\"))","v":"2022-07-17"},null,{"$f":"IF(DAY(Aug_sv1)=1,IF(AND(YEAR(Aug_sv1+8)=Kalendārais_gads,MONTH(Aug_sv1+8)=8),Aug_sv1+8,\"\"),IF(AND(YEAR(Aug_sv1+15)=Kalendārais_gads,MONTH(Aug_sv1+15)=8),Aug_sv1+15,\"\"))","v":"2022-08-15"},{"$f":"IF(DAY(Aug_sv1)=1,IF(AND(YEAR(Aug_sv1+9)=Kalendārais_gads,MONTH(Aug_sv1+9)=8),Aug_sv1+9,\"\"),IF(AND(YEAR(Aug_sv1+16)=Kalendārais_gads,MONTH(Aug_sv1+16)=8),Aug_sv1+16,\"\"))","v":"2022-08-16"},{"$f":"IF(DAY(Aug_sv1)=1,IF(AND(YEAR(Aug_sv1+10)=Kalendārais_gads,MONTH(Aug_sv1+10)=8),Aug_sv1+10,\"\"),IF(AND(YEAR(Aug_sv1+17)=Kalendārais_gads,MONTH(Aug_sv1+17)=8),Aug_sv1+17,\"\"))","v":"2022-08-17"},{"$f":"IF(DAY(Aug_sv1)=1,IF(AND(YEAR(Aug_sv1+11)=Kalendārais_gads,MONTH(Aug_sv1+11)=8),Aug_sv1+11,\"\"),IF(AND(YEAR(Aug_sv1+18)=Kalendārais_gads,MONTH(Aug_sv1+18)=8),Aug_sv1+18,\"\"))","v":"2022-08-18"},{"$f":"IF(DAY(Aug_sv1)=1,IF(AND(YEAR(Aug_sv1+12)=Kalendārais_gads,MONTH(Aug_sv1+12)=8),Aug_sv1+12,\"\"),IF(AND(YEAR(Aug_sv1+19)=Kalendārais_gads,MONTH(Aug_sv1+19)=8),Aug_sv1+19,\"\"))","v":"2022-08-19"},{"$f":"IF(DAY(Aug_sv1)=1,IF(AND(YEAR(Aug_sv1+13)=Kalendārais_gads,MONTH(Aug_sv1+13)=8),Aug_sv1+13,\"\"),IF(AND(YEAR(Aug_sv1+20)=Kalendārais_gads,MONTH(Aug_sv1+20)=8),Aug_sv1+20,\"\"))","v":"2022-08-20"},{"$f":"IF(DAY(Aug_sv1)=1,IF(AND(YEAR(Aug_sv1+14)=Kalendārais_gads,MONTH(Aug_sv1+14)=8),Aug_sv1+14,\"\"),IF(AND(YEAR(Aug_sv1+21)=Kalendārais_gads,MONTH(Aug_sv1+21)=8),Aug_sv1+21,\"\"))","v":"2022-08-21"}]
[null,null,{"$f":"IF(DAY(Jūl_sv1)=1,IF(AND(YEAR(Jūl_sv1+15)=Kalendārais_gads,MONTH(Jūl_sv1+15)=7),Jūl_sv1+15,\"\"),IF(AND(YEAR(Jūl_sv1+22)=Kalendārais_gads,MONTH(Jūl_sv1+22)=7),Jūl_sv1+22,\"\"))","v":"2022-07-18"},{"$f":"IF(DAY(Jūl_sv1)=1,IF(AND(YEAR(Jūl_sv1+16)=Kalendārais_gads,MONTH(Jūl_sv1+16)=7),Jūl_sv1+16,\"\"),IF(AND(YEAR(Jūl_sv1+23)=Kalendārais_gads,MONTH(Jūl_sv1+23)=7),Jūl_sv1+23,\"\"))","v":"2022-07-19"},{"$f":"IF(DAY(Jūl_sv1)=1,IF(AND(YEAR(Jūl_sv1+17)=Kalendārais_gads,MONTH(Jūl_sv1+17)=7),Jūl_sv1+17,\"\"),IF(AND(YEAR(Jūl_sv1+24)=Kalendārais_gads,MONTH(Jūl_sv1+24)=7),Jūl_sv1+24,\"\"))","v":"2022-07-20"},{"$f":"IF(DAY(Jūl_sv1)=1,IF(AND(YEAR(Jūl_sv1+18)=Kalendārais_gads,MONTH(Jūl_sv1+18)=7),Jūl_sv1+18,\"\"),IF(AND(YEAR(Jūl_sv1+25)=Kalendārais_gads,MONTH(Jūl_sv1+25)=7),Jūl_sv1+25,\"\"))","v":"2022-07-21"},{"$f":"IF(DAY(Jūl_sv1)=1,IF(AND(YEAR(Jūl_sv1+19)=Kalendārais_gads,MONTH(Jūl_sv1+19)=7),Jūl_sv1+19,\"\"),IF(AND(YEAR(Jūl_sv1+26)=Kalendārais_gads,MONTH(Jūl_sv1+26)=7),Jūl_sv1+26,\"\"))","v":"2022-07-22"},{"$f":"IF(DAY(Jūl_sv1)=1,IF(AND(YEAR(Jūl_sv1+20)=Kalendārais_gads,MONTH(Jūl_sv1+20)=7),Jūl_sv1+20,\"\"),IF(AND(YEAR(Jūl_sv1+27)=Kalendārais_gads,MONTH(Jūl_sv1+27)=7),Jūl_sv1+27,\"\"))","v":"2022-07-23"},{"$f":"IF(DAY(Jūl_sv1)=1,IF(AND(YEAR(Jūl_sv1+21)=Kalendārais_gads,MONTH(Jūl_sv1+21)=7),Jūl_sv1+21,\"\"),IF(AND(YEAR(Jūl_sv1+28)=Kalendārais_gads,MONTH(Jūl_sv1+28)=7),Jūl_sv1+28,\"\"))","v":"2022-07-24"},null,{"$f":"IF(DAY(Aug_sv1)=1,IF(AND(YEAR(Aug_sv1+15)=Kalendārais_gads,MONTH(Aug_sv1+15)=8),Aug_sv1+15,\"\"),IF(AND(YEAR(Aug_sv1+22)=Kalendārais_gads,MONTH(Aug_sv1+22)=8),Aug_sv1+22,\"\"))","v":"2022-08-22"},{"$f":"IF(DAY(Aug_sv1)=1,IF(AND(YEAR(Aug_sv1+16)=Kalendārais_gads,MONTH(Aug_sv1+16)=8),Aug_sv1+16,\"\"),IF(AND(YEAR(Aug_sv1+23)=Kalendārais_gads,MONTH(Aug_sv1+23)=8),Aug_sv1+23,\"\"))","v":"2022-08-23"},{"$f":"IF(DAY(Aug_sv1)=1,IF(AND(YEAR(Aug_sv1+17)=Kalendārais_gads,MONTH(Aug_sv1+17)=8),Aug_sv1+17,\"\"),IF(AND(YEAR(Aug_sv1+24)=Kalendārais_gads,MONTH(Aug_sv1+24)=8),Aug_sv1+24,\"\"))","v":"2022-08-24"},{"$f":"IF(DAY(Aug_sv1)=1,IF(AND(YEAR(Aug_sv1+18)=Kalendārais_gads,MONTH(Aug_sv1+18)=8),Aug_sv1+18,\"\"),IF(AND(YEAR(Aug_sv1+25)=Kalendārais_gads,MONTH(Aug_sv1+25)=8),Aug_sv1+25,\"\"))","v":"2022-08-25"},{"$f":"IF(DAY(Aug_sv1)=1,IF(AND(YEAR(Aug_sv1+19)=Kalendārais_gads,MONTH(Aug_sv1+19)=8),Aug_sv1+19,\"\"),IF(AND(YEAR(Aug_sv1+26)=Kalendārais_gads,MONTH(Aug_sv1+26)=8),Aug_sv1+26,\"\"))","v":"2022-08-26"},{"$f":"IF(DAY(Aug_sv1)=1,IF(AND(YEAR(Aug_sv1+20)=Kalendārais_gads,MONTH(Aug_sv1+20)=8),Aug_sv1+20,\"\"),IF(AND(YEAR(Aug_sv1+27)=Kalendārais_gads,MONTH(Aug_sv1+27)=8),Aug_sv1+27,\"\"))","v":"2022-08-27"},{"$f":"IF(DAY(Aug_sv1)=1,IF(AND(YEAR(Aug_sv1+21)=Kalendārais_gads,MONTH(Aug_sv1+21)=8),Aug_sv1+21,\"\"),IF(AND(YEAR(Aug_sv1+28)=Kalendārais_gads,MONTH(Aug_sv1+28)=8),Aug_sv1+28,\"\"))","v":"2022-08-28"}]
[null,null,{"$f":"IF(DAY(Jūl_sv1)=1,IF(AND(YEAR(Jūl_sv1+22)=Kalendārais_gads,MONTH(Jūl_sv1+22)=7),Jūl_sv1+22,\"\"),IF(AND(YEAR(Jūl_sv1+29)=Kalendārais_gads,MONTH(Jūl_sv1+29)=7),Jūl_sv1+29,\"\"))","v":"2022-07-25"},{"$f":"IF(DAY(Jūl_sv1)=1,IF(AND(YEAR(Jūl_sv1+23)=Kalendārais_gads,MONTH(Jūl_sv1+23)=7),Jūl_sv1+23,\"\"),IF(AND(YEAR(Jūl_sv1+30)=Kalendārais_gads,MONTH(Jūl_sv1+30)=7),Jūl_sv1+30,\"\"))","v":"2022-07-26"},{"$f":"IF(DAY(Jūl_sv1)=1,IF(AND(YEAR(Jūl_sv1+24)=Kalendārais_gads,MONTH(Jūl_sv1+24)=7),Jūl_sv1+24,\"\"),IF(AND(YEAR(Jūl_sv1+31)=Kalendārais_gads,MONTH(Jūl_sv1+31)=7),Jūl_sv1+31,\"\"))","v":"2022-07-27"},{"$f":"IF(DAY(Jūl_sv1)=1,IF(AND(YEAR(Jūl_sv1+25)=Kalendārais_gads,MONTH(Jūl_sv1+25)=7),Jūl_sv1+25,\"\"),IF(AND(YEAR(Jūl_sv1+32)=Kalendārais_gads,MONTH(Jūl_sv1+32)=7),Jūl_sv1+32,\"\"))","v":"2022-07-28"},{"$f":"IF(DAY(Jūl_sv1)=1,IF(AND(YEAR(Jūl_sv1+26)=Kalendārais_gads,MONTH(Jūl_sv1+26)=7),Jūl_sv1+26,\"\"),IF(AND(YEAR(Jūl_sv1+33)=Kalendārais_gads,MONTH(Jūl_sv1+33)=7),Jūl_sv1+33,\"\"))","v":"2022-07-29"},{"$f":"IF(DAY(Jūl_sv1)=1,IF(AND(YEAR(Jūl_sv1+27)=Kalendārais_gads,MONTH(Jūl_sv1+27)=7),Jūl_sv1+27,\"\"),IF(AND(YEAR(Jūl_sv1+34)=Kalendārais_gads,MONTH(Jūl_sv1+34)=7),Jūl_sv1+34,\"\"))","v":"2022-07-30"},{"$f":"IF(DAY(Jūl_sv1)=1,IF(AND(YEAR(Jūl_sv1+28)=Kalendārais_gads,MONTH(Jūl_sv1+28)=7),Jūl_sv1+28,\"\"),IF(AND(YEAR(Jūl_sv1+35)=Kalendārais_gads,MONTH(Jūl_sv1+35)=7),Jūl_sv1+35,\"\"))","v":"2022-07-31"},null,{"$f":"IF(DAY(Aug_sv1)=1,IF(AND(YEAR(Aug_sv1+22)=Kalendārais_gads,MONTH(Aug_sv1+22)=8),Aug_sv1+22,\"\"),IF(AND(YEAR(Aug_sv1+29)=Kalendārais_gads,MONTH(Aug_sv1+29)=8),Aug_sv1+29,\"\"))","v":"2022-08-29"},{"$f":"IF(DAY(Aug_sv1)=1,IF(AND(YEAR(Aug_sv1+23)=Kalendārais_gads,MONTH(Aug_sv1+23)=8),Aug_sv1+23,\"\"),IF(AND(YEAR(Aug_sv1+30)=Kalendārais_gads,MONTH(Aug_sv1+30)=8),Aug_sv1+30,\"\"))","v":"2022-08-30"},{"$f":"IF(DAY(Aug_sv1)=1,IF(AND(YEAR(Aug_sv1+24)=Kalendārais_gads,MONTH(Aug_sv1+24)=8),Aug_sv1+24,\"\"),IF(AND(YEAR(Aug_sv1+31)=Kalendārais_gads,MONTH(Aug_sv1+31)=8),Aug_sv1+31,\"\"))","v":"2022-08-31"},{"$f":"IF(DAY(Aug_sv1)=1,IF(AND(YEAR(Aug_sv1+25)=Kalendārais_gads,MONTH(Aug_sv1+25)=8),Aug_sv1+25,\"\"),IF(AND(YEAR(Aug_sv1+32)=Kalendārais_gads,MONTH(Aug_sv1+32)=8),Aug_sv1+32,\"\"))","v":""},{"$f":"IF(DAY(Aug_sv1)=1,IF(AND(YEAR(Aug_sv1+26)=Kalendārais_gads,MONTH(Aug_sv1+26)=8),Aug_sv1+26,\"\"),IF(AND(YEAR(Aug_sv1+33)=Kalendārais_gads,MONTH(Aug_sv1+33)=8),Aug_sv1+33,\"\"))","v":""},{"$f":"IF(DAY(Aug_sv1)=1,IF(AND(YEAR(Aug_sv1+27)=Kalendārais_gads,MONTH(Aug_sv1+27)=8),Aug_sv1+27,\"\"),IF(AND(YEAR(Aug_sv1+34)=Kalendārais_gads,MONTH(Aug_sv1+34)=8),Aug_sv1+34,\"\"))","v":""},{"$f":"IF(DAY(Aug_sv1)=1,IF(AND(YEAR(Aug_sv1+28)=Kalendārais_gads,MONTH(Aug_sv1+28)=8),Aug_sv1+28,\"\"),IF(AND(YEAR(Aug_sv1+35)=Kalendārais_gads,MONTH(Aug_sv1+35)=8),Aug_sv1+35,\"\"))","v":""}]
[null,null,{"$f":"IF(DAY(Jūl_sv1)=1,IF(AND(YEAR(Jūl_sv1+29)=Kalendārais_gads,MONTH(Jūl_sv1+29)=7),Jūl_sv1+29,\"\"),IF(AND(YEAR(Jūl_sv1+36)=Kalendārais_gads,MONTH(Jūl_sv1+36)=7),Jūl_sv1+36,\"\"))","v":""},{"$f":"IF(DAY(Jūl_sv1)=1,IF(AND(YEAR(Jūl_sv1+30)=Kalendārais_gads,MONTH(Jūl_sv1+30)=7),Jūl_sv1+30,\"\"),IF(AND(YEAR(Jūl_sv1+37)=Kalendārais_gads,MONTH(Jūl_sv1+37)=7),Jūl_sv1+37,\"\"))","v":""},{"$f":"IF(DAY(Jūl_sv1)=1,IF(AND(YEAR(Jūl_sv1+31)=Kalendārais_gads,MONTH(Jūl_sv1+31)=7),Jūl_sv1+31,\"\"),IF(AND(YEAR(Jūl_sv1+38)=Kalendārais_gads,MONTH(Jūl_sv1+38)=7),Jūl_sv1+38,\"\"))","v":""},{"$f":"IF(DAY(Jūl_sv1)=1,IF(AND(YEAR(Jūl_sv1+32)=Kalendārais_gads,MONTH(Jūl_sv1+32)=7),Jūl_sv1+32,\"\"),IF(AND(YEAR(Jūl_sv1+39)=Kalendārais_gads,MONTH(Jūl_sv1+39)=7),Jūl_sv1+39,\"\"))","v":""},{"$f":"IF(DAY(Jūl_sv1)=1,IF(AND(YEAR(Jūl_sv1+33)=Kalendārais_gads,MONTH(Jūl_sv1+33)=7),Jūl_sv1+33,\"\"),IF(AND(YEAR(Jūl_sv1+40)=Kalendārais_gads,MONTH(Jūl_sv1+40)=7),Jūl_sv1+40,\"\"))","v":""},{"$f":"IF(DAY(Jūl_sv1)=1,IF(AND(YEAR(Jūl_sv1+34)=Kalendārais_gads,MONTH(Jūl_sv1+34)=7),Jūl_sv1+34,\"\"),IF(AND(YEAR(Jūl_sv1+41)=Kalendārais_gads,MONTH(Jūl_sv1+41)=7),Jūl_sv1+41,\"\"))","v":""},{"$f":"IF(DAY(Jūl_sv1)=1,IF(AND(YEAR(Jūl_sv1+35)=Kalendārais_gads,MONTH(Jūl_sv1+35)=7),Jūl_sv1+35,\"\"),IF(AND(YEAR(Jūl_sv1+42)=Kalendārais_gads,MONTH(Jūl_sv1+42)=7),Jūl_sv1+42,\"\"))","v":""},null,{"$f":"IF(DAY(Aug_sv1)=1,IF(AND(YEAR(Aug_sv1+29)=Kalendārais_gads,MONTH(Aug_sv1+29)=8),Aug_sv1+29,\"\"),IF(AND(YEAR(Aug_sv1+36)=Kalendārais_gads,MONTH(Aug_sv1+36)=8),Aug_sv1+36,\"\"))","v":""},{"$f":"IF(DAY(Aug_sv1)=1,IF(AND(YEAR(Aug_sv1+30)=Kalendārais_gads,MONTH(Aug_sv1+30)=8),Aug_sv1+30,\"\"),IF(AND(YEAR(Aug_sv1+37)=Kalendārais_gads,MONTH(Aug_sv1+37)=8),Aug_sv1+37,\"\"))","v":""},{"$f":"IF(DAY(Aug_sv1)=1,IF(AND(YEAR(Aug_sv1+31)=Kalendārais_gads,MONTH(Aug_sv1+31)=8),Aug_sv1+31,\"\"),IF(AND(YEAR(Aug_sv1+38)=Kalendārais_gads,MONTH(Aug_sv1+38)=8),Aug_sv1+38,\"\"))","v":""},{"$f":"IF(DAY(Aug_sv1)=1,IF(AND(YEAR(Aug_sv1+32)=Kalendārais_gads,MONTH(Aug_sv1+32)=8),Aug_sv1+32,\"\"),IF(AND(YEAR(Aug_sv1+39)=Kalendārais_gads,MONTH(Aug_sv1+39)=8),Aug_sv1+39,\"\"))","v":""},{"$f":"IF(DAY(Aug_sv1)=1,IF(AND(YEAR(Aug_sv1+33)=Kalendārais_gads,MONTH(Aug_sv1+33)=8),Aug_sv1+33,\"\"),IF(AND(YEAR(Aug_sv1+40)=Kalendārais_gads,MONTH(Aug_sv1+40)=8),Aug_sv1+40,\"\"))","v":""},{"$f":"IF(DAY(Aug_sv1)=1,IF(AND(YEAR(Aug_sv1+34)=Kalendārais_gads,MONTH(Aug_sv1+34)=8),Aug_sv1+34,\"\"),IF(AND(YEAR(Aug_sv1+41)=Kalendārais_gads,MONTH(Aug_sv1+41)=8),Aug_sv1+41,\"\"))","v":""},{"$f":"IF(DAY(Aug_sv1)=1,IF(AND(YEAR(Aug_sv1+35)=Kalendārais_gads,MONTH(Aug_sv1+35)=8),Aug_sv1+35,\"\"),IF(AND(YEAR(Aug_sv1+42)=Kalendārais_gads,MONTH(Aug_sv1+42)=8),Aug_sv1+42,\"\"))","v":""}]
[]
["Septembra etiķete atrodas šūnā C39, bet oktobra etiķete — šūnā K39",null,"SEPTEMBRIS",{"$nulls":7},"OKTOBRIS"]
["Septembra kalendāra tabula ir šūnu diapazonā C40–I46, bet oktobra kalendāra tabula — šūnu diapazonā K40 to Q46. Nākamais norādījums ir šūnā A44",null,"PR","OT","TR","CE","PK","SE","SV",null,"PR","OT","TR","CE","PK","SE","SV"]
[null,null,{"$f":"IF(DAY(Sep_sv1)=1,\"\",IF(AND(YEAR(Sep_sv1+1)=Kalendārais_gads,MONTH(Sep_sv1+1)=9),Sep_sv1+1,\"\"))","v":""},{"$f":"IF(DAY(Sep_sv1)=1,\"\",IF(AND(YEAR(Sep_sv1+2)=Kalendārais_gads,MONTH(Sep_sv1+2)=9),Sep_sv1+2,\"\"))","v":""},{"$f":"IF(DAY(Sep_sv1)=1,\"\",IF(AND(YEAR(Sep_sv1+3)=Kalendārais_gads,MONTH(Sep_sv1+3)=9),Sep_sv1+3,\"\"))","v":""},{"$f":"IF(DAY(Sep_sv1)=1,\"\",IF(AND(YEAR(Sep_sv1+4)=Kalendārais_gads,MONTH(Sep_sv1+4)=9),Sep_sv1+4,\"\"))","v":"2022-09-01"},{"$f":"IF(DAY(Sep_sv1)=1,\"\",IF(AND(YEAR(Sep_sv1+5)=Kalendārais_gads,MONTH(Sep_sv1+5)=9),Sep_sv1+5,\"\"))","v":"2022-09-02"},{"$f":"IF(DAY(Sep_sv1)=1,\"\",IF(AND(YEAR(Sep_sv1+6)=Kalendārais_gads,MONTH(Sep_sv1+6)=9),Sep_sv1+6,\"\"))","v":"2022-09-03"},{"$f":"IF(DAY(Sep_sv1)=1,IF(AND(YEAR(Sep_sv1)=Kalendārais_gads,MONTH(Sep_sv1)=9),Sep_sv1,\"\"),IF(AND(YEAR(Sep_sv1+7)=Kalendārais_gads,MONTH(Sep_sv1+7)=9),Sep_sv1+7,\"\"))","v":"2022-09-04"},null,{"$f":"IF(DAY(Okt_sv1)=1,\"\",IF(AND(YEAR(Okt_sv1+1)=Kalendārais_gads,MONTH(Okt_sv1+1)=10),Okt_sv1+1,\"\"))","v":""},{"$f":"IF(DAY(Okt_sv1)=1,\"\",IF(AND(YEAR(Okt_sv1+2)=Kalendārais_gads,MONTH(Okt_sv1+2)=10),Okt_sv1+2,\"\"))","v":""},{"$f":"IF(DAY(Okt_sv1)=1,\"\",IF(AND(YEAR(Okt_sv1+3)=Kalendārais_gads,MONTH(Okt_sv1+3)=10),Okt_sv1+3,\"\"))","v":""},{"$f":"IF(DAY(Okt_sv1)=1,\"\",IF(AND(YEAR(Okt_sv1+4)=Kalendārais_gads,MONTH(Okt_sv1+4)=10),Okt_sv1+4,\"\"))","v":""},{"$f":"IF(DAY(Okt_sv1)=1,\"\",IF(AND(YEAR(Okt_sv1+5)=Kalendārais_gads,MONTH(Okt_sv1+5)=10),Okt_sv1+5,\"\"))","v":""},{"$f":"IF(DAY(Okt_sv1)=1,\"\",IF(AND(YEAR(Okt_sv1+6)=Kalendārais_gads,MONTH(Okt_sv1+6)=10),Okt_sv1+6,\"\"))","v":"2022-10-01"},{"$f":"IF(DAY(Okt_sv1)=1,IF(AND(YEAR(Okt_sv1)=Kalendārais_gads,MONTH(Okt_sv1)=10),Okt_sv1,\"\"),IF(AND(YEAR(Okt_sv1+7)=Kalendārais_gads,MONTH(Okt_sv1+7)=10),Okt_sv1+7,\"\"))","v":"2022-10-02"}]
[null,null,{"$f":"IF(DAY(Sep_sv1)=1,IF(AND(YEAR(Sep_sv1+1)=Kalendārais_gads,MONTH(Sep_sv1+1)=9),Sep_sv1+1,\"\"),IF(AND(YEAR(Sep_sv1+8)=Kalendārais_gads,MONTH(Sep_sv1+8)=9),Sep_sv1+8,\"\"))","v":"2022-09-05"},{"$f":"IF(DAY(Sep_sv1)=1,IF(AND(YEAR(Sep_sv1+2)=Kalendārais_gads,MONTH(Sep_sv1+2)=9),Sep_sv1+2,\"\"),IF(AND(YEAR(Sep_sv1+9)=Kalendārais_gads,MONTH(Sep_sv1+9)=9),Sep_sv1+9,\"\"))","v":"2022-09-06"},{"$f":"IF(DAY(Sep_sv1)=1,IF(AND(YEAR(Sep_sv1+3)=Kalendārais_gads,MONTH(Sep_sv1+3)=9),Sep_sv1+3,\"\"),IF(AND(YEAR(Sep_sv1+10)=Kalendārais_gads,MONTH(Sep_sv1+10)=9),Sep_sv1+10,\"\"))","v":"2022-09-07"},{"$f":"IF(DAY(Sep_sv1)=1,IF(AND(YEAR(Sep_sv1+4)=Kalendārais_gads,MONTH(Sep_sv1+4)=9),Sep_sv1+4,\"\"),IF(AND(YEAR(Sep_sv1+11)=Kalendārais_gads,MONTH(Sep_sv1+11)=9),Sep_sv1+11,\"\"))","v":"2022-09-08"},{"$f":"IF(DAY(Sep_sv1)=1,IF(AND(YEAR(Sep_sv1+5)=Kalendārais_gads,MONTH(Sep_sv1+5)=9),Sep_sv1+5,\"\"),IF(AND(YEAR(Sep_sv1+12)=Kalendārais_gads,MONTH(Sep_sv1+12)=9),Sep_sv1+12,\"\"))","v":"2022-09-09"},{"$f":"IF(DAY(Sep_sv1)=1,IF(AND(YEAR(Sep_sv1+6)=Kalendārais_gads,MONTH(Sep_sv1+6)=9),Sep_sv1+6,\"\"),IF(AND(YEAR(Sep_sv1+13)=Kalendārais_gads,MONTH(Sep_sv1+13)=9),Sep_sv1+13,\"\"))","v":"2022-09-10"},{"$f":"IF(DAY(Sep_sv1)=1,IF(AND(YEAR(Sep_sv1+7)=Kalendārais_gads,MONTH(Sep_sv1+7)=9),Sep_sv1+7,\"\"),IF(AND(YEAR(Sep_sv1+14)=Kalendārais_gads,MONTH(Sep_sv1+14)=9),Sep_sv1+14,\"\"))","v":"2022-09-11"},null,{"$f":"IF(DAY(Okt_sv1)=1,IF(AND(YEAR(Okt_sv1+1)=Kalendārais_gads,MONTH(Okt_sv1+1)=10),Okt_sv1+1,\"\"),IF(AND(YEAR(Okt_sv1+8)=Kalendārais_gads,MONTH(Okt_sv1+8)=10),Okt_sv1+8,\"\"))","v":"2022-10-03"},{"$f":"IF(DAY(Okt_sv1)=1,IF(AND(YEAR(Okt_sv1+2)=Kalendārais_gads,MONTH(Okt_sv1+2)=10),Okt_sv1+2,\"\"),IF(AND(YEAR(Okt_sv1+9)=Kalendārais_gads,MONTH(Okt_sv1+9)=10),Okt_sv1+9,\"\"))","v":"2022-10-04"},{"$f":"IF(DAY(Okt_sv1)=1,IF(AND(YEAR(Okt_sv1+3)=Kalendārais_gads,MONTH(Okt_sv1+3)=10),Okt_sv1+3,\"\"),IF(AND(YEAR(Okt_sv1+10)=Kalendārais_gads,MONTH(Okt_sv1+10)=10),Okt_sv1+10,\"\"))","v":"2022-10-05"},{"$f":"IF(DAY(Okt_sv1)=1,IF(AND(YEAR(Okt_sv1+4)=Kalendārais_gads,MONTH(Okt_sv1+4)=10),Okt_sv1+4,\"\"),IF(AND(YEAR(Okt_sv1+11)=Kalendārais_gads,MONTH(Okt_sv1+11)=10),Okt_sv1+11,\"\"))","v":"2022-10-06"},{"$f":"IF(DAY(Okt_sv1)=1,IF(AND(YEAR(Okt_sv1+5)=Kalendārais_gads,MONTH(Okt_sv1+5)=10),Okt_sv1+5,\"\"),IF(AND(YEAR(Okt_sv1+12)=Kalendārais_gads,MONTH(Okt_sv1+12)=10),Okt_sv1+12,\"\"))","v":"2022-10-07"},{"$f":"IF(DAY(Okt_sv1)=1,IF(AND(YEAR(Okt_sv1+6)=Kalendārais_gads,MONTH(Okt_sv1+6)=10),Okt_sv1+6,\"\"),IF(AND(YEAR(Okt_sv1+13)=Kalendārais_gads,MONTH(Okt_sv1+13)=10),Okt_sv1+13,\"\"))","v":"2022-10-08"},{"$f":"IF(DAY(Okt_sv1)=1,IF(AND(YEAR(Okt_sv1+7)=Kalendārais_gads,MONTH(Okt_sv1+7)=10),Okt_sv1+7,\"\"),IF(AND(YEAR(Okt_sv1+14)=Kalendārais_gads,MONTH(Okt_sv1+14)=10),Okt_sv1+14,\"\"))","v":"2022-10-09"}]
[null,null,{"$f":"IF(DAY(Sep_sv1)=1,IF(AND(YEAR(Sep_sv1+8)=Kalendārais_gads,MONTH(Sep_sv1+8)=9),Sep_sv1+8,\"\"),IF(AND(YEAR(Sep_sv1+15)=Kalendārais_gads,MONTH(Sep_sv1+15)=9),Sep_sv1+15,\"\"))","v":"2022-09-12"},{"$f":"IF(DAY(Sep_sv1)=1,IF(AND(YEAR(Sep_sv1+9)=Kalendārais_gads,MONTH(Sep_sv1+9)=9),Sep_sv1+9,\"\"),IF(AND(YEAR(Sep_sv1+16)=Kalendārais_gads,MONTH(Sep_sv1+16)=9),Sep_sv1+16,\"\"))","v":"2022-09-13"},{"$f":"IF(DAY(Sep_sv1)=1,IF(AND(YEAR(Sep_sv1+10)=Kalendārais_gads,MONTH(Sep_sv1+10)=9),Sep_sv1+10,\"\"),IF(AND(YEAR(Sep_sv1+17)=Kalendārais_gads,MONTH(Sep_sv1+17)=9),Sep_sv1+17,\"\"))","v":"2022-09-14"},{"$f":"IF(DAY(Sep_sv1)=1,IF(AND(YEAR(Sep_sv1+11)=Kalendārais_gads,MONTH(Sep_sv1+11)=9),Sep_sv1+11,\"\"),IF(AND(YEAR(Sep_sv1+18)=Kalendārais_gads,MONTH(Sep_sv1+18)=9),Sep_sv1+18,\"\"))","v":"2022-09-15"},{"$f":"IF(DAY(Sep_sv1)=1,IF(AND(YEAR(Sep_sv1+12)=Kalendārais_gads,MONTH(Sep_sv1+12)=9),Sep_sv1+12,\"\"),IF(AND(YEAR(Sep_sv1+19)=Kalendārais_gads,MONTH(Sep_sv1+19)=9),Sep_sv1+19,\"\"))","v":"2022-09-16"},{"$f":"IF(DAY(Sep_sv1)=1,IF(AND(YEAR(Sep_sv1+13)=Kalendārais_gads,MONTH(Sep_sv1+13)=9),Sep_sv1+13,\"\"),IF(AND(YEAR(Sep_sv1+20)=Kalendārais_gads,MONTH(Sep_sv1+20)=9),Sep_sv1+20,\"\"))","v":"2022-09-17"},{"$f":"IF(DAY(Sep_sv1)=1,IF(AND(YEAR(Sep_sv1+14)=Kalendārais_gads,MONTH(Sep_sv1+14)=9),Sep_sv1+14,\"\"),IF(AND(YEAR(Sep_sv1+21)=Kalendārais_gads,MONTH(Sep_sv1+21)=9),Sep_sv1+21,\"\"))","v":"2022-09-18"},null,{"$f":"IF(DAY(Okt_sv1)=1,IF(AND(YEAR(Okt_sv1+8)=Kalendārais_gads,MONTH(Okt_sv1+8)=10),Okt_sv1+8,\"\"),IF(AND(YEAR(Okt_sv1+15)=Kalendārais_gads,MONTH(Okt_sv1+15)=10),Okt_sv1+15,\"\"))","v":"2022-10-10"},{"$f":"IF(DAY(Okt_sv1)=1,IF(AND(YEAR(Okt_sv1+9)=Kalendārais_gads,MONTH(Okt_sv1+9)=10),Okt_sv1+9,\"\"),IF(AND(YEAR(Okt_sv1+16)=Kalendārais_gads,MONTH(Okt_sv1+16)=10),Okt_sv1+16,\"\"))","v":"2022-10-11"},{"$f":"IF(DAY(Okt_sv1)=1,IF(AND(YEAR(Okt_sv1+10)=Kalendārais_gads,MONTH(Okt_sv1+10)=10),Okt_sv1+10,\"\"),IF(AND(YEAR(Okt_sv1+17)=Kalendārais_gads,MONTH(Okt_sv1+17)=10),Okt_sv1+17,\"\"))","v":"2022-10-12"},{"$f":"IF(DAY(Okt_sv1)=1,IF(AND(YEAR(Okt_sv1+11)=Kalendārais_gads,MONTH(Okt_sv1+11)=10),Okt_sv1+11,\"\"),IF(AND(YEAR(Okt_sv1+18)=Kalendārais_gads,MONTH(Okt_sv1+18)=10),Okt_sv1+18,\"\"))","v":"2022-10-13"},{"$f":"IF(DAY(Okt_sv1)=1,IF(AND(YEAR(Okt_sv1+12)=Kalendārais_gads,MONTH(Okt_sv1+12)=10),Okt_sv1+12,\"\"),IF(AND(YEAR(Okt_sv1+19)=Kalendārais_gads,MONTH(Okt_sv1+19)=10),Okt_sv1+19,\"\"))","v":"2022-10-14"},{"$f":"IF(DAY(Okt_sv1)=1,IF(AND(YEAR(Okt_sv1+13)=Kalendārais_gads,MONTH(Okt_sv1+13)=10),Okt_sv1+13,\"\"),IF(AND(YEAR(Okt_sv1+20)=Kalendārais_gads,MONTH(Okt_sv1+20)=10),Okt_sv1+20,\"\"))","v":"2022-10-15"},{"$f":"IF(DAY(Okt_sv1)=1,IF(AND(YEAR(Okt_sv1+14)=Kalendārais_gads,MONTH(Okt_sv1+14)=10),Okt_sv1+14,\"\"),IF(AND(YEAR(Okt_sv1+21)=Kalendārais_gads,MONTH(Okt_sv1+21)=10),Okt_sv1+21,\"\"))","v":"2022-10-16"}]
["Šūnā U44 ievadiet ielu un mājas nr.",null,{"$f":"IF(DAY(Sep_sv1)=1,IF(AND(YEAR(Sep_sv1+15)=Kalendārais_gads,MONTH(Sep_sv1+15)=9),Sep_sv1+15,\"\"),IF(AND(YEAR(Sep_sv1+22)=Kalendārais_gads,MONTH(Sep_sv1+22)=9),Sep_sv1+22,\"\"))","v":"2022-09-19"},{"$f":"IF(DAY(Sep_sv1)=1,IF(AND(YEAR(Sep_sv1+16)=Kalendārais_gads,MONTH(Sep_sv1+16)=9),Sep_sv1+16,\"\"),IF(AND(YEAR(Sep_sv1+23)=Kalendārais_gads,MONTH(Sep_sv1+23)=9),Sep_sv1+23,\"\"))","v":"2022-09-20"},{"$f":"IF(DAY(Sep_sv1)=1,IF(AND(YEAR(Sep_sv1+17)=Kalendārais_gads,MONTH(Sep_sv1+17)=9),Sep_sv1+17,\"\"),IF(AND(YEAR(Sep_sv1+24)=Kalendārais_gads,MONTH(Sep_sv1+24)=9),Sep_sv1+24,\"\"))","v":"2022-09-21"},{"$f":"IF(DAY(Sep_sv1)=1,IF(AND(YEAR(Sep_sv1+18)=Kalendārais_gads,MONTH(Sep_sv1+18)=9),Sep_sv1+18,\"\"),IF(AND(YEAR(Sep_sv1+25)=Kalendārais_gads,MONTH(Sep_sv1+25)=9),Sep_sv1+25,\"\"))","v":"2022-09-22"},{"$f":"IF(DAY(Sep_sv1)=1,IF(AND(YEAR(Sep_sv1+19)=Kalendārais_gads,MONTH(Sep_sv1+19)=9),Sep_sv1+19,\"\"),IF(AND(YEAR(Sep_sv1+26)=Kalendārais_gads,MONTH(Sep_sv1+26)=9),Sep_sv1+26,\"\"))","v":"2022-09-23"},{"$f":"IF(DAY(Sep_sv1)=1,IF(AND(YEAR(Sep_sv1+20)=Kalendārais_gads,MONTH(Sep_sv1+20)=9),Sep_sv1+20,\"\"),IF(AND(YEAR(Sep_sv1+27)=Kalendārais_gads,MONTH(Sep_sv1+27)=9),Sep_sv1+27,\"\"))","v":"2022-09-24"},{"$f":"IF(DAY(Sep_sv1)=1,IF(AND(YEAR(Sep_sv1+21)=Kalendārais_gads,MONTH(Sep_sv1+21)=9),Sep_sv1+21,\"\"),IF(AND(YEAR(Sep_sv1+28)=Kalendārais_gads,MONTH(Sep_sv1+28)=9),Sep_sv1+28,\"\"))","v":"2022-09-25"},null,{"$f":"IF(DAY(Okt_sv1)=1,IF(AND(YEAR(Okt_sv1+15)=Kalendārais_gads,MONTH(Okt_sv1+15)=10),Okt_sv1+15,\"\"),IF(AND(YEAR(Okt_sv1+22)=Kalendārais_gads,MONTH(Okt_sv1+22)=10),Okt_sv1+22,\"\"))","v":"2022-10-17"},{"$f":"IF(DAY(Okt_sv1)=1,IF(AND(YEAR(Okt_sv1+16)=Kalendārais_gads,MONTH(Okt_sv1+16)=10),Okt_sv1+16,\"\"),IF(AND(YEAR(Okt_sv1+23)=Kalendārais_gads,MONTH(Okt_sv1+23)=10),Okt_sv1+23,\"\"))","v":"2022-10-18"},{"$f":"IF(DAY(Okt_sv1)=1,IF(AND(YEAR(Okt_sv1+17)=Kalendārais_gads,MONTH(Okt_sv1+17)=10),Okt_sv1+17,\"\"),IF(AND(YEAR(Okt_sv1+24)=Kalendārais_gads,MONTH(Okt_sv1+24)=10),Okt_sv1+24,\"\"))","v":"2022-10-19"},{"$f":"IF(DAY(Okt_sv1)=1,IF(AND(YEAR(Okt_sv1+18)=Kalendārais_gads,MONTH(Okt_sv1+18)=10),Okt_sv1+18,\"\"),IF(AND(YEAR(Okt_sv1+25)=Kalendārais_gads,MONTH(Okt_sv1+25)=10),Okt_sv1+25,\"\"))","v":"2022-10-20"},{"$f":"IF(DAY(Okt_sv1)=1,IF(AND(YEAR(Okt_sv1+19)=Kalendārais_gads,MONTH(Okt_sv1+19)=10),Okt_sv1+19,\"\"),IF(AND(YEAR(Okt_sv1+26)=Kalendārais_gads,MONTH(Okt_sv1+26)=10),Okt_sv1+26,\"\"))","v":"2022-10-21"},{"$f":"IF(DAY(Okt_sv1)=1,IF(AND(YEAR(Okt_sv1+20)=Kalendārais_gads,MONTH(Okt_sv1+20)=10),Okt_sv1+20,\"\"),IF(AND(YEAR(Okt_sv1+27)=Kalendārais_gads,MONTH(Okt_sv1+27)=10),Okt_sv1+27,\"\"))","v":"2022-10-22"},{"$f":"IF(DAY(Okt_sv1)=1,IF(AND(YEAR(Okt_sv1+21)=Kalendārais_gads,MONTH(Okt_sv1+21)=10),Okt_sv1+21,\"\"),IF(AND(YEAR(Okt_sv1+28)=Kalendārais_gads,MONTH(Okt_sv1+28)=10),Okt_sv1+28,\"\"))","v":"2022-10-23"},{"$nulls":3},"Iela, mājas nr."]
["Šūnā U45 ievadiet pilsētu, novadu un pasta indeksu. Nākamais norādījums ir šūnā A47",null,{"$f":"IF(DAY(Sep_sv1)=1,IF(AND(YEAR(Sep_sv1+22)=Kalendārais_gads,MONTH(Sep_sv1+22)=9),Sep_sv1+22,\"\"),IF(AND(YEAR(Sep_sv1+29)=Kalendārais_gads,MONTH(Sep_sv1+29)=9),Sep_sv1+29,\"\"))","v":"2022-09-26"},{"$f":"IF(DAY(Sep_sv1)=1,IF(AND(YEAR(Sep_sv1+23)=Kalendārais_gads,MONTH(Sep_sv1+23)=9),Sep_sv1+23,\"\"),IF(AND(YEAR(Sep_sv1+30)=Kalendārais_gads,MONTH(Sep_sv1+30)=9),Sep_sv1+30,\"\"))","v":"2022-09-27"},{"$f":"IF(DAY(Sep_sv1)=1,IF(AND(YEAR(Sep_sv1+24)=Kalendārais_gads,MONTH(Sep_sv1+24)=9),Sep_sv1+24,\"\"),IF(AND(YEAR(Sep_sv1+31)=Kalendārais_gads,MONTH(Sep_sv1+31)=9),Sep_sv1+31,\"\"))","v":"2022-09-28"},{"$f":"IF(DAY(Sep_sv1)=1,IF(AND(YEAR(Sep_sv1+25)=Kalendārais_gads,MONTH(Sep_sv1+25)=9),Sep_sv1+25,\"\"),IF(AND(YEAR(Sep_sv1+32)=Kalendārais_gads,MONTH(Sep_sv1+32)=9),Sep_sv1+32,\"\"))","v":"2022-09-29"},{"$f":"IF(DAY(Sep_sv1)=1,IF(AND(YEAR(Sep_sv1+26)=Kalendārais_gads,MONTH(Sep_sv1+26)=9),Sep_sv1+26,\"\"),IF(AND(YEAR(Sep_sv1+33)=Kalendārais_gads,MONTH(Sep_sv1+33)=9),Sep_sv1+33,\"\"))","v":"2022-09-30"},{"$f":"IF(DAY(Sep_sv1)=1,IF(AND(YEAR(Sep_sv1+27)=Kalendārais_gads,MONTH(Sep_sv1+27)=9),Sep_sv1+27,\"\"),IF(AND(YEAR(Sep_sv1+34)=Kalendārais_gads,MONTH(Sep_sv1+34)=9),Sep_sv1+34,\"\"))","v":""},{"$f":"IF(DAY(Sep_sv1)=1,IF(AND(YEAR(Sep_sv1+28)=Kalendārais_gads,MONTH(Sep_sv1+28)=9),Sep_sv1+28,\"\"),IF(AND(YEAR(Sep_sv1+35)=Kalendārais_gads,MONTH(Sep_sv1+35)=9),Sep_sv1+35,\"\"))","v":""},null,{"$f":"IF(DAY(Okt_sv1)=1,IF(AND(YEAR(Okt_sv1+22)=Kalendārais_gads,MONTH(Okt_sv1+22)=10),Okt_sv1+22,\"\"),IF(AND(YEAR(Okt_sv1+29)=Kalendārais_gads,MONTH(Okt_sv1+29)=10),Okt_sv1+29,\"\"))","v":"2022-10-24"},{"$f":"IF(DAY(Okt_sv1)=1,IF(AND(YEAR(Okt_sv1+23)=Kalendārais_gads,MONTH(Okt_sv1+23)=10),Okt_sv1+23,\"\"),IF(AND(YEAR(Okt_sv1+30)=Kalendārais_gads,MONTH(Okt_sv1+30)=10),Okt_sv1+30,\"\"))","v":"2022-10-25"},{"$f":"IF(DAY(Okt_sv1)=1,IF(AND(YEAR(Okt_sv1+24)=Kalendārais_gads,MONTH(Okt_sv1+24)=10),Okt_sv1+24,\"\"),IF(AND(YEAR(Okt_sv1+31)=Kalendārais_gads,MONTH(Okt_sv1+31)=10),Okt_sv1+31,\"\"))","v":"2022-10-26"},{"$f":"IF(DAY(Okt_sv1)=1,IF(AND(YEAR(Okt_sv1+25)=Kalendārais_gads,MONTH(Okt_sv1+25)=10),Okt_sv1+25,\"\"),IF(AND(YEAR(Okt_sv1+32)=Kalendārais_gads,MONTH(Okt_sv1+32)=10),Okt_sv1+32,\"\"))","v":"2022-10-27"},{"$f":"IF(DAY(Okt_sv1)=1,IF(AND(YEAR(Okt_sv1+26)=Kalendārais_gads,MONTH(Okt_sv1+26)=10),Okt_sv1+26,\"\"),IF(AND(YEAR(Okt_sv1+33)=Kalendārais_gads,MONTH(Okt_sv1+33)=10),Okt_sv1+33,\"\"))","v":"2022-10-28"},{"$f":"IF(DAY(Okt_sv1)=1,IF(AND(YEAR(Okt_sv1+27)=Kalendārais_gads,MONTH(Okt_sv1+27)=10),Okt_sv1+27,\"\"),IF(AND(YEAR(Okt_sv1+34)=Kalendārais_gads,MONTH(Okt_sv1+34)=10),Okt_sv1+34,\"\"))","v":"2022-10-29"},{"$f":"IF(DAY(Okt_sv1)=1,IF(AND(YEAR(Okt_sv1+28)=Kalendārais_gads,MONTH(Okt_sv1+28)=10),Okt_sv1+28,\"\"),IF(AND(YEAR(Okt_sv1+35)=Kalendārais_gads,MONTH(Okt_sv1+35)=10),Okt_sv1+35,\"\"))","v":"2022-10-30"},{"$nulls":3},"Pilsēta, novads, pasta indekss"]
[null,null,{"$f":"IF(DAY(Sep_sv1)=1,IF(AND(YEAR(Sep_sv1+29)=Kalendārais_gads,MONTH(Sep_sv1+29)=9),Sep_sv1+29,\"\"),IF(AND(YEAR(Sep_sv1+36)=Kalendārais_gads,MONTH(Sep_sv1+36)=9),Sep_sv1+36,\"\"))","v":""},{"$f":"IF(DAY(Sep_sv1)=1,IF(AND(YEAR(Sep_sv1+30)=Kalendārais_gads,MONTH(Sep_sv1+30)=9),Sep_sv1+30,\"\"),IF(AND(YEAR(Sep_sv1+37)=Kalendārais_gads,MONTH(Sep_sv1+37)=9),Sep_sv1+37,\"\"))","v":""},{"$f":"IF(DAY(Sep_sv1)=1,IF(AND(YEAR(Sep_sv1+31)=Kalendārais_gads,MONTH(Sep_sv1+31)=9),Sep_sv1+31,\"\"),IF(AND(YEAR(Sep_sv1+38)=Kalendārais_gads,MONTH(Sep_sv1+38)=9),Sep_sv1+38,\"\"))","v":""},{"$f":"IF(DAY(Sep_sv1)=1,IF(AND(YEAR(Sep_sv1+32)=Kalendārais_gads,MONTH(Sep_sv1+32)=9),Sep_sv1+32,\"\"),IF(AND(YEAR(Sep_sv1+39)=Kalendārais_gads,MONTH(Sep_sv1+39)=9),Sep_sv1+39,\"\"))","v":""},{"$f":"IF(DAY(Sep_sv1)=1,IF(AND(YEAR(Sep_sv1+33)=Kalendārais_gads,MONTH(Sep_sv1+33)=9),Sep_sv1+33,\"\"),IF(AND(YEAR(Sep_sv1+40)=Kalendārais_gads,MONTH(Sep_sv1+40)=9),Sep_sv1+40,\"\"))","v":""},{"$f":"IF(DAY(Sep_sv1)=1,IF(AND(YEAR(Sep_sv1+34)=Kalendārais_gads,MONTH(Sep_sv1+34)=9),Sep_sv1+34,\"\"),IF(AND(YEAR(Sep_sv1+41)=Kalendārais_gads,MONTH(Sep_sv1+41)=9),Sep_sv1+41,\"\"))","v":""},{"$f":"IF(DAY(Sep_sv1)=1,IF(AND(YEAR(Sep_sv1+35)=Kalendārais_gads,MONTH(Sep_sv1+35)=9),Sep_sv1+35,\"\"),IF(AND(YEAR(Sep_sv1+42)=Kalendārais_gads,MONTH(Sep_sv1+42)=9),Sep_sv1+42,\"\"))","v":""},null,{"$f":"IF(DAY(Okt_sv1)=1,IF(AND(YEAR(Okt_sv1+29)=Kalendārais_gads,MONTH(Okt_sv1+29)=10),Okt_sv1+29,\"\"),IF(AND(YEAR(Okt_sv1+36)=Kalendārais_gads,MONTH(Okt_sv1+36)=10),Okt_sv1+36,\"\"))","v":"2022-10-31"},{"$f":"IF(DAY(Okt_sv1)=1,IF(AND(YEAR(Okt_sv1+30)=Kalendārais_gads,MONTH(Okt_sv1+30)=10),Okt_sv1+30,\"\"),IF(AND(YEAR(Okt_sv1+37)=Kalendārais_gads,MONTH(Okt_sv1+37)=10),Okt_sv1+37,\"\"))","v":""},{"$f":"IF(DAY(Okt_sv1)=1,IF(AND(YEAR(Okt_sv1+31)=Kalendārais_gads,MONTH(Okt_sv1+31)=10),Okt_sv1+31,\"\"),IF(AND(YEAR(Okt_sv1+38)=Kalendārais_gads,MONTH(Okt_sv1+38)=10),Okt_sv1+38,\"\"))","v":""},{"$f":"IF(DAY(Okt_sv1)=1,IF(AND(YEAR(Okt_sv1+32)=Kalendārais_gads,MONTH(Okt_sv1+32)=10),Okt_sv1+32,\"\"),IF(AND(YEAR(Okt_sv1+39)=Kalendārais_gads,MONTH(Okt_sv1+39)=10),Okt_sv1+39,\"\"))","v":""},{"$f":"IF(DAY(Okt_sv1)=1,IF(AND(YEAR(Okt_sv1+33)=Kalendārais_gads,MONTH(Okt_sv1+33)=10),Okt_sv1+33,\"\"),IF(AND(YEAR(Okt_sv1+40)=Kalendārais_gads,MONTH(Okt_sv1+40)=10),Okt_sv1+40,\"\"))","v":""},{"$f":"IF(DAY(Okt_sv1)=1,IF(AND(YEAR(Okt_sv1+34)=Kalendārais_gads,MONTH(Okt_sv1+34)=10),Okt_sv1+34,\"\"),IF(AND(YEAR(Okt_sv1+41)=Kalendārais_gads,MONTH(Okt_sv1+41)=10),Okt_sv1+41,\"\"))","v":""},{"$f":"IF(DAY(Okt_sv1)=1,IF(AND(YEAR(Okt_sv1+35)=Kalendārais_gads,MONTH(Okt_sv1+35)=10),Okt_sv1+35,\"\"),IF(AND(YEAR(Okt_sv1+42)=Kalendārais_gads,MONTH(Okt_sv1+42)=10),Okt_sv1+42,\"\"))","v":""}]
["Šūnā U47 ievadiet uzņēmuma tālruņa numuru",{"$nulls":19},"Tālrunis"]
["Novembra etiķete atrodas šūnā C48, bet decembra etiķete — šūnā K48. Šūnā U48 ievadiet e-pasta adresi",null,"NOVEMBRIS",{"$nulls":7},"DECEMBRIS",{"$nulls":9},"E-pasts"]
["Novembra kalendāra tabula ir šūnu diapazonā C49–I55, bet decembra kalendāra tabula — šūnu diapazonā K49 to Q55. Nākamais norādījums ir šūnā A51",null,"PR","OT","TR","CE","PK","SE","SV",null,"PR","OT","TR","CE","PK","SE","SV",{"$nulls":3},"Tīmekļa vietne"]
[null,null,{"$f":"IF(DAY(Nov_sv1)=1,\"\",IF(AND(YEAR(Nov_sv1+1)=Kalendārais_gads,MONTH(Nov_sv1+1)=11),Nov_sv1+1,\"\"))","v":""},{"$f":"IF(DAY(Nov_sv1)=1,\"\",IF(AND(YEAR(Nov_sv1+2)=Kalendārais_gads,MONTH(Nov_sv1+2)=11),Nov_sv1+2,\"\"))","v":"2022-11-01"},{"$f":"IF(DAY(Nov_sv1)=1,\"\",IF(AND(YEAR(Nov_sv1+3)=Kalendārais_gads,MONTH(Nov_sv1+3)=11),Nov_sv1+3,\"\"))","v":"2022-11-02"},{"$f":"IF(DAY(Nov_sv1)=1,\"\",IF(AND(YEAR(Nov_sv1+4)=Kalendārais_gads,MONTH(Nov_sv1+4)=11),Nov_sv1+4,\"\"))","v":"2022-11-03"},{"$f":"IF(DAY(Nov_sv1)=1,\"\",IF(AND(YEAR(Nov_sv1+5)=Kalendārais_gads,MONTH(Nov_sv1+5)=11),Nov_sv1+5,\"\"))","v":"2022-11-04"},{"$f":"IF(DAY(Nov_sv1)=1,\"\",IF(AND(YEAR(Nov_sv1+6)=Kalendārais_gads,MONTH(Nov_sv1+6)=11),Nov_sv1+6,\"\"))","v":"2022-11-05"},{"$f":"IF(DAY(Nov_sv1)=1,IF(AND(YEAR(Nov_sv1)=Kalendārais_gads,MONTH(Nov_sv1)=11),Nov_sv1,\"\"),IF(AND(YEAR(Nov_sv1+7)=Kalendārais_gads,MONTH(Nov_sv1+7)=11),Nov_sv1+7,\"\"))","v":"2022-11-06"},null,{"$f":"IF(DAY(Dec_sv1)=1,\"\",IF(AND(YEAR(Dec_sv1+1)=Kalendārais_gads,MONTH(Dec_sv1+1)=12),Dec_sv1+1,\"\"))","v":""},{"$f":"IF(DAY(Dec_sv1)=1,\"\",IF(AND(YEAR(Dec_sv1+2)=Kalendārais_gads,MONTH(Dec_sv1+2)=12),Dec_sv1+2,\"\"))","v":""},{"$f":"IF(DAY(Dec_sv1)=1,\"\",IF(AND(YEAR(Dec_sv1+3)=Kalendārais_gads,MONTH(Dec_sv1+3)=12),Dec_sv1+3,\"\"))","v":""},{"$f":"IF(DAY(Dec_sv1)=1,\"\",IF(AND(YEAR(Dec_sv1+4)=Kalendārais_gads,MONTH(Dec_sv1+4)=12),Dec_sv1+4,\"\"))","v":"2022-12-01"},{"$f":"IF(DAY(Dec_sv1)=1,\"\",IF(AND(YEAR(Dec_sv1+5)=Kalendārais_gads,MONTH(Dec_sv1+5)=12),Dec_sv1+5,\"\"))","v":"2022-12-02"},{"$f":"IF(DAY(Dec_sv1)=1,\"\",IF(AND(YEAR(Dec_sv1+6)=Kalendārais_gads,MONTH(Dec_sv1+6)=12),Dec_sv1+6,\"\"))","v":"2022-12-03"},{"$f":"IF(DAY(Dec_sv1)=1,IF(AND(YEAR(Dec_sv1)=Kalendārais_gads,MONTH(Dec_sv1)=12),Dec_sv1,\"\"),IF(AND(YEAR(Dec_sv1+7)=Kalendārais_gads,MONTH(Dec_sv1+7)=12),Dec_sv1+7,\"\"))","v":"2022-12-04"}]
["Šūnā U51 pievienojiet uzņēmuma logotipu",null,{"$f":"IF(DAY(Nov_sv1)=1,IF(AND(YEAR(Nov_sv1+1)=Kalendārais_gads,MONTH(Nov_sv1+1)=11),Nov_sv1+1,\"\"),IF(AND(YEAR(Nov_sv1+8)=Kalendārais_gads,MONTH(Nov_sv1+8)=11),Nov_sv1+8,\"\"))","v":"2022-11-07"},{"$f":"IF(DAY(Nov_sv1)=1,IF(AND(YEAR(Nov_sv1+2)=Kalendārais_gads,MONTH(Nov_sv1+2)=11),Nov_sv1+2,\"\"),IF(AND(YEAR(Nov_sv1+9)=Kalendārais_gads,MONTH(Nov_sv1+9)=11),Nov_sv1+9,\"\"))","v":"2022-11-08"},{"$f":"IF(DAY(Nov_sv1)=1,IF(AND(YEAR(Nov_sv1+3)=Kalendārais_gads,MONTH(Nov_sv1+3)=11),Nov_sv1+3,\"\"),IF(AND(YEAR(Nov_sv1+10)=Kalendārais_gads,MONTH(Nov_sv1+10)=11),Nov_sv1+10,\"\"))","v":"2022-11-09"},{"$f":"IF(DAY(Nov_sv1)=1,IF(AND(YEAR(Nov_sv1+4)=Kalendārais_gads,MONTH(Nov_sv1+4)=11),Nov_sv1+4,\"\"),IF(AND(YEAR(Nov_sv1+11)=Kalendārais_gads,MONTH(Nov_sv1+11)=11),Nov_sv1+11,\"\"))","v":"2022-11-10"},{"$f":"IF(DAY(Nov_sv1)=1,IF(AND(YEAR(Nov_sv1+5)=Kalendārais_gads,MONTH(Nov_sv1+5)=11),Nov_sv1+5,\"\"),IF(AND(YEAR(Nov_sv1+12)=Kalendārais_gads,MONTH(Nov_sv1+12)=11),Nov_sv1+12,\"\"))","v":"2022-11-11"},{"$f":"IF(DAY(Nov_sv1)=1,IF(AND(YEAR(Nov_sv1+6)=Kalendārais_gads,MONTH(Nov_sv1+6)=11),Nov_sv1+6,\"\"),IF(AND(YEAR(Nov_sv1+13)=Kalendārais_gads,MONTH(Nov_sv1+13)=11),Nov_sv1+13,\"\"))","v":"2022-11-12"},{"$f":"IF(DAY(Nov_sv1)=1,IF(AND(YEAR(Nov_sv1+7)=Kalendārais_gads,MONTH(Nov_sv1+7)=11),Nov_sv1+7,\"\"),IF(AND(YEAR(Nov_sv1+14)=Kalendārais_gads,MONTH(Nov_sv1+14)=11),Nov_sv1+14,\"\"))","v":"2022-11-13"},null,{"$f":"IF(DAY(Dec_sv1)=1,IF(AND(YEAR(Dec_sv1+1)=Kalendārais_gads,MONTH(Dec_sv1+1)=12),Dec_sv1+1,\"\"),IF(AND(YEAR(Dec_sv1+8)=Kalendārais_gads,MONTH(Dec_sv1+8)=12),Dec_sv1+8,\"\"))","v":"2022-12-05"},{"$f":"IF(DAY(Dec_sv1)=1,IF(AND(YEAR(Dec_sv1+2)=Kalendārais_gads,MONTH(Dec_sv1+2)=12),Dec_sv1+2,\"\"),IF(AND(YEAR(Dec_sv1+9)=Kalendārais_gads,MONTH(Dec_sv1+9)=12),Dec_sv1+9,\"\"))","v":"2022-12-06"},{"$f":"IF(DAY(Dec_sv1)=1,IF(AND(YEAR(Dec_sv1+3)=Kalendārais_gads,MONTH(Dec_sv1+3)=12),Dec_sv1+3,\"\"),IF(AND(YEAR(Dec_sv1+10)=Kalendārais_gads,MONTH(Dec_sv1+10)=12),Dec_sv1+10,\"\"))","v":"2022-12-07"},{"$f":"IF(DAY(Dec_sv1)=1,IF(AND(YEAR(Dec_sv1+4)=Kalendārais_gads,MONTH(Dec_sv1+4)=12),Dec_sv1+4,\"\"),IF(AND(YEAR(Dec_sv1+11)=Kalendārais_gads,MONTH(Dec_sv1+11)=12),Dec_sv1+11,\"\"))","v":"2022-12-08"},{"$f":"IF(DAY(Dec_sv1)=1,IF(AND(YEAR(Dec_sv1+5)=Kalendārais_gads,MONTH(Dec_sv1+5)=12),Dec_sv1+5,\"\"),IF(AND(YEAR(Dec_sv1+12)=Kalendārais_gads,MONTH(Dec_sv1+12)=12),Dec_sv1+12,\"\"))","v":"2022-12-09"},{"$f":"IF(DAY(Dec_sv1)=1,IF(AND(YEAR(Dec_sv1+6)=Kalendārais_gads,MONTH(Dec_sv1+6)=12),Dec_sv1+6,\"\"),IF(AND(YEAR(Dec_sv1+13)=Kalendārais_gads,MONTH(Dec_sv1+13)=12),Dec_sv1+13,\"\"))","v":"2022-12-10"},{"$f":"IF(DAY(Dec_sv1)=1,IF(AND(YEAR(Dec_sv1+7)=Kalendārais_gads,MONTH(Dec_sv1+7)=12),Dec_sv1+7,\"\"),IF(AND(YEAR(Dec_sv1+14)=Kalendārais_gads,MONTH(Dec_sv1+14)=12),Dec_sv1+14,\"\"))","v":"2022-12-11"},{"$nulls":3},"Šajā šūnā ir logotipa vietturis."]
[null,null,{"$f":"IF(DAY(Nov_sv1)=1,IF(AND(YEAR(Nov_sv1+8)=Kalendārais_gads,MONTH(Nov_sv1+8)=11),Nov_sv1+8,\"\"),IF(AND(YEAR(Nov_sv1+15)=Kalendārais_gads,MONTH(Nov_sv1+15)=11),Nov_sv1+15,\"\"))","v":"2022-11-14"},{"$f":"IF(DAY(Nov_sv1)=1,IF(AND(YEAR(Nov_sv1+9)=Kalendārais_gads,MONTH(Nov_sv1+9)=11),Nov_sv1+9,\"\"),IF(AND(YEAR(Nov_sv1+16)=Kalendārais_gads,MONTH(Nov_sv1+16)=11),Nov_sv1+16,\"\"))","v":"2022-11-15"},{"$f":"IF(DAY(Nov_sv1)=1,IF(AND(YEAR(Nov_sv1+10)=Kalendārais_gads,MONTH(Nov_sv1+10)=11),Nov_sv1+10,\"\"),IF(AND(YEAR(Nov_sv1+17)=Kalendārais_gads,MONTH(Nov_sv1+17)=11),Nov_sv1+17,\"\"))","v":"2022-11-16"},{"$f":"IF(DAY(Nov_sv1)=1,IF(AND(YEAR(Nov_sv1+11)=Kalendārais_gads,MONTH(Nov_sv1+11)=11),Nov_sv1+11,\"\"),IF(AND(YEAR(Nov_sv1+18)=Kalendārais_gads,MONTH(Nov_sv1+18)=11),Nov_sv1+18,\"\"))","v":"2022-11-17"},{"$f":"IF(DAY(Nov_sv1)=1,IF(AND(YEAR(Nov_sv1+12)=Kalendārais_gads,MONTH(Nov_sv1+12)=11),Nov_sv1+12,\"\"),IF(AND(YEAR(Nov_sv1+19)=Kalendārais_gads,MONTH(Nov_sv1+19)=11),Nov_sv1+19,\"\"))","v":"2022-11-18"},{"$f":"IF(DAY(Nov_sv1)=1,IF(AND(YEAR(Nov_sv1+13)=Kalendārais_gads,MONTH(Nov_sv1+13)=11),Nov_sv1+13,\"\"),IF(AND(YEAR(Nov_sv1+20)=Kalendārais_gads,MONTH(Nov_sv1+20)=11),Nov_sv1+20,\"\"))","v":"2022-11-19"},{"$f":"IF(DAY(Nov_sv1)=1,IF(AND(YEAR(Nov_sv1+14)=Kalendārais_gads,MONTH(Nov_sv1+14)=11),Nov_sv1+14,\"\"),IF(AND(YEAR(Nov_sv1+21)=Kalendārais_gads,MONTH(Nov_sv1+21)=11),Nov_sv1+21,\"\"))","v":"2022-11-20"},null,{"$f":"IF(DAY(Dec_sv1)=1,IF(AND(YEAR(Dec_sv1+8)=Kalendārais_gads,MONTH(Dec_sv1+8)=12),Dec_sv1+8,\"\"),IF(AND(YEAR(Dec_sv1+15)=Kalendārais_gads,MONTH(Dec_sv1+15)=12),Dec_sv1+15,\"\"))","v":"2022-12-12"},{"$f":"IF(DAY(Dec_sv1)=1,IF(AND(YEAR(Dec_sv1+9)=Kalendārais_gads,MONTH(Dec_sv1+9)=12),Dec_sv1+9,\"\"),IF(AND(YEAR(Dec_sv1+16)=Kalendārais_gads,MONTH(Dec_sv1+16)=12),Dec_sv1+16,\"\"))","v":"2022-12-13"},{"$f":"IF(DAY(Dec_sv1)=1,IF(AND(YEAR(Dec_sv1+10)=Kalendārais_gads,MONTH(Dec_sv1+10)=12),Dec_sv1+10,\"\"),IF(AND(YEAR(Dec_sv1+17)=Kalendārais_gads,MONTH(Dec_sv1+17)=12),Dec_sv1+17,\"\"))","v":"2022-12-14"},{"$f":"IF(DAY(Dec_sv1)=1,IF(AND(YEAR(Dec_sv1+11)=Kalendārais_gads,MONTH(Dec_sv1+11)=12),Dec_sv1+11,\"\"),IF(AND(YEAR(Dec_sv1+18)=Kalendārais_gads,MONTH(Dec_sv1+18)=12),Dec_sv1+18,\"\"))","v":"2022-12-15"},{"$f":"IF(DAY(Dec_sv1)=1,IF(AND(YEAR(Dec_sv1+12)=Kalendārais_gads,MONTH(Dec_sv1+12)=12),Dec_sv1+12,\"\"),IF(AND(YEAR(Dec_sv1+19)=Kalendārais_gads,MONTH(Dec_sv1+19)=12),Dec_sv1+19,\"\"))","v":"2022-12-16"},{"$f":"IF(DAY(Dec_sv1)=1,IF(AND(YEAR(Dec_sv1+13)=Kalendārais_gads,MONTH(Dec_sv1+13)=12),Dec_sv1+13,\"\"),IF(AND(YEAR(Dec_sv1+20)=Kalendārais_gads,MONTH(Dec_sv1+20)=12),Dec_sv1+20,\"\"))","v":"2022-12-17"},{"$f":"IF(DAY(Dec_sv1)=1,IF(AND(YEAR(Dec_sv1+14)=Kalendārais_gads,MONTH(Dec_sv1+14)=12),Dec_sv1+14,\"\"),IF(AND(YEAR(Dec_sv1+21)=Kalendārais_gads,MONTH(Dec_sv1+21)=12),Dec_sv1+21,\"\"))","v":"2022-12-18"}]
[null,null,{"$f":"IF(DAY(Nov_sv1)=1,IF(AND(YEAR(Nov_sv1+15)=Kalendārais_gads,MONTH(Nov_sv1+15)=11),Nov_sv1+15,\"\"),IF(AND(YEAR(Nov_sv1+22)=Kalendārais_gads,MONTH(Nov_sv1+22)=11),Nov_sv1+22,\"\"))","v":"2022-11-21"},{"$f":"IF(DAY(Nov_sv1)=1,IF(AND(YEAR(Nov_sv1+16)=Kalendārais_gads,MONTH(Nov_sv1+16)=11),Nov_sv1+16,\"\"),IF(AND(YEAR(Nov_sv1+23)=Kalendārais_gads,MONTH(Nov_sv1+23)=11),Nov_sv1+23,\"\"))","v":"2022-11-22"},{"$f":"IF(DAY(Nov_sv1)=1,IF(AND(YEAR(Nov_sv1+17)=Kalendārais_gads,MONTH(Nov_sv1+17)=11),Nov_sv1+17,\"\"),IF(AND(YEAR(Nov_sv1+24)=Kalendārais_gads,MONTH(Nov_sv1+24)=11),Nov_sv1+24,\"\"))","v":"2022-11-23"},{"$f":"IF(DAY(Nov_sv1)=1,IF(AND(YEAR(Nov_sv1+18)=Kalendārais_gads,MONTH(Nov_sv1+18)=11),Nov_sv1+18,\"\"),IF(AND(YEAR(Nov_sv1+25)=Kalendārais_gads,MONTH(Nov_sv1+25)=11),Nov_sv1+25,\"\"))","v":"2022-11-24"},{"$f":"IF(DAY(Nov_sv1)=1,IF(AND(YEAR(Nov_sv1+19)=Kalendārais_gads,MONTH(Nov_sv1+19)=11),Nov_sv1+19,\"\"),IF(AND(YEAR(Nov_sv1+26)=Kalendārais_gads,MONTH(Nov_sv1+26)=11),Nov_sv1+26,\"\"))","v":"2022-11-25"},{"$f":"IF(DAY(Nov_sv1)=1,IF(AND(YEAR(Nov_sv1+20)=Kalendārais_gads,MONTH(Nov_sv1+20)=11),Nov_sv1+20,\"\"),IF(AND(YEAR(Nov_sv1+27)=Kalendārais_gads,MONTH(Nov_sv1+27)=11),Nov_sv1+27,\"\"))","v":"2022-11-26"},{"$f":"IF(DAY(Nov_sv1)=1,IF(AND(YEAR(Nov_sv1+21)=Kalendārais_gads,MONTH(Nov_sv1+21)=11),Nov_sv1+21,\"\"),IF(AND(YEAR(Nov_sv1+28)=Kalendārais_gads,MONTH(Nov_sv1+28)=11),Nov_sv1+28,\"\"))","v":"2022-11-27"},null,{"$f":"IF(DAY(Dec_sv1)=1,IF(AND(YEAR(Dec_sv1+15)=Kalendārais_gads,MONTH(Dec_sv1+15)=12),Dec_sv1+15,\"\"),IF(AND(YEAR(Dec_sv1+22)=Kalendārais_gads,MONTH(Dec_sv1+22)=12),Dec_sv1+22,\"\"))","v":"2022-12-19"},{"$f":"IF(DAY(Dec_sv1)=1,IF(AND(YEAR(Dec_sv1+16)=Kalendārais_gads,MONTH(Dec_sv1+16)=12),Dec_sv1+16,\"\"),IF(AND(YEAR(Dec_sv1+23)=Kalendārais_gads,MONTH(Dec_sv1+23)=12),Dec_sv1+23,\"\"))","v":"2022-12-20"},{"$f":"IF(DAY(Dec_sv1)=1,IF(AND(YEAR(Dec_sv1+17)=Kalendārais_gads,MONTH(Dec_sv1+17)=12),Dec_sv1+17,\"\"),IF(AND(YEAR(Dec_sv1+24)=Kalendārais_gads,MONTH(Dec_sv1+24)=12),Dec_sv1+24,\"\"))","v":"2022-12-21"},{"$f":"IF(DAY(Dec_sv1)=1,IF(AND(YEAR(Dec_sv1+18)=Kalendārais_gads,MONTH(Dec_sv1+18)=12),Dec_sv1+18,\"\"),IF(AND(YEAR(Dec_sv1+25)=Kalendārais_gads,MONTH(Dec_sv1+25)=12),Dec_sv1+25,\"\"))","v":"2022-12-22"},{"$f":"IF(DAY(Dec_sv1)=1,IF(AND(YEAR(Dec_sv1+19)=Kalendārais_gads,MONTH(Dec_sv1+19)=12),Dec_sv1+19,\"\"),IF(AND(YEAR(Dec_sv1+26)=Kalendārais_gads,MONTH(Dec_sv1+26)=12),Dec_sv1+26,\"\"))","v":"2022-12-23"},{"$f":"IF(DAY(Dec_sv1)=1,IF(AND(YEAR(Dec_sv1+20)=Kalendārais_gads,MONTH(Dec_sv1+20)=12),Dec_sv1+20,\"\"),IF(AND(YEAR(Dec_sv1+27)=Kalendārais_gads,MONTH(Dec_sv1+27)=12),Dec_sv1+27,\"\"))","v":"2022-12-24"},{"$f":"IF(DAY(Dec_sv1)=1,IF(AND(YEAR(Dec_sv1+21)=Kalendārais_gads,MONTH(Dec_sv1+21)=12),Dec_sv1+21,\"\"),IF(AND(YEAR(Dec_sv1+28)=Kalendārais_gads,MONTH(Dec_sv1+28)=12),Dec_sv1+28,\"\"))","v":"2022-12-25"}]
[null,null,{"$f":"IF(DAY(Nov_sv1)=1,IF(AND(YEAR(Nov_sv1+22)=Kalendārais_gads,MONTH(Nov_sv1+22)=11),Nov_sv1+22,\"\"),IF(AND(YEAR(Nov_sv1+29)=Kalendārais_gads,MONTH(Nov_sv1+29)=11),Nov_sv1+29,\"\"))","v":"2022-11-28"},{"$f":"IF(DAY(Nov_sv1)=1,IF(AND(YEAR(Nov_sv1+23)=Kalendārais_gads,MONTH(Nov_sv1+23)=11),Nov_sv1+23,\"\"),IF(AND(YEAR(Nov_sv1+30)=Kalendārais_gads,MONTH(Nov_sv1+30)=11),Nov_sv1+30,\"\"))","v":"2022-11-29"},{"$f":"IF(DAY(Nov_sv1)=1,IF(AND(YEAR(Nov_sv1+24)=Kalendārais_gads,MONTH(Nov_sv1+24)=11),Nov_sv1+24,\"\"),IF(AND(YEAR(Nov_sv1+31)=Kalendārais_gads,MONTH(Nov_sv1+31)=11),Nov_sv1+31,\"\"))","v":"2022-11-30"},{"$f":"IF(DAY(Nov_sv1)=1,IF(AND(YEAR(Nov_sv1+25)=Kalendārais_gads,MONTH(Nov_sv1+25)=11),Nov_sv1+25,\"\"),IF(AND(YEAR(Nov_sv1+32)=Kalendārais_gads,MONTH(Nov_sv1+32)=11),Nov_sv1+32,\"\"))","v":""},{"$f":"IF(DAY(Nov_sv1)=1,IF(AND(YEAR(Nov_sv1+26)=Kalendārais_gads,MONTH(Nov_sv1+26)=11),Nov_sv1+26,\"\"),IF(AND(YEAR(Nov_sv1+33)=Kalendārais_gads,MONTH(Nov_sv1+33)=11),Nov_sv1+33,\"\"))","v":""},{"$f":"IF(DAY(Nov_sv1)=1,IF(AND(YEAR(Nov_sv1+27)=Kalendārais_gads,MONTH(Nov_sv1+27)=11),Nov_sv1+27,\"\"),IF(AND(YEAR(Nov_sv1+34)=Kalendārais_gads,MONTH(Nov_sv1+34)=11),Nov_sv1+34,\"\"))","v":""},{"$f":"IF(DAY(Nov_sv1)=1,IF(AND(YEAR(Nov_sv1+28)=Kalendārais_gads,MONTH(Nov_sv1+28)=11),Nov_sv1+28,\"\"),IF(AND(YEAR(Nov_sv1+35)=Kalendārais_gads,MONTH(Nov_sv1+35)=11),Nov_sv1+35,\"\"))","v":""},null,{"$f":"IF(DAY(Dec_sv1)=1,IF(AND(YEAR(Dec_sv1+22)=Kalendārais_gads,MONTH(Dec_sv1+22)=12),Dec_sv1+22,\"\"),IF(AND(YEAR(Dec_sv1+29)=Kalendārais_gads,MONTH(Dec_sv1+29)=12),Dec_sv1+29,\"\"))","v":"2022-12-26"},{"$f":"IF(DAY(Dec_sv1)=1,IF(AND(YEAR(Dec_sv1+23)=Kalendārais_gads,MONTH(Dec_sv1+23)=12),Dec_sv1+23,\"\"),IF(AND(YEAR(Dec_sv1+30)=Kalendārais_gads,MONTH(Dec_sv1+30)=12),Dec_sv1+30,\"\"))","v":"2022-12-27"},{"$f":"IF(DAY(Dec_sv1)=1,IF(AND(YEAR(Dec_sv1+24)=Kalendārais_gads,MONTH(Dec_sv1+24)=12),Dec_sv1+24,\"\"),IF(AND(YEAR(Dec_sv1+31)=Kalendārais_gads,MONTH(Dec_sv1+31)=12),Dec_sv1+31,\"\"))","v":"2022-12-28"},{"$f":"IF(DAY(Dec_sv1)=1,IF(AND(YEAR(Dec_sv1+25)=Kalendārais_gads,MONTH(Dec_sv1+25)=12),Dec_sv1+25,\"\"),IF(AND(YEAR(Dec_sv1+32)=Kalendārais_gads,MONTH(Dec_sv1+32)=12),Dec_sv1+32,\"\"))","v":"2022-12-29"},{"$f":"IF(DAY(Dec_sv1)=1,IF(AND(YEAR(Dec_sv1+26)=Kalendārais_gads,MONTH(Dec_sv1+26)=12),Dec_sv1+26,\"\"),IF(AND(YEAR(Dec_sv1+33)=Kalendārais_gads,MONTH(Dec_sv1+33)=12),Dec_sv1+33,\"\"))","v":"2022-12-30"},{"$f":"IF(DAY(Dec_sv1)=1,IF(AND(YEAR(Dec_sv1+27)=Kalendārais_gads,MONTH(Dec_sv1+27)=12),Dec_sv1+27,\"\"),IF(AND(YEAR(Dec_sv1+34)=Kalendārais_gads,MONTH(Dec_sv1+34)=12),Dec_sv1+34,\"\"))","v":"2022-12-31"},{"$f":"IF(DAY(Dec_sv1)=1,IF(AND(YEAR(Dec_sv1+28)=Kalendārais_gads,MONTH(Dec_sv1+28)=12),Dec_sv1+28,\"\"),IF(AND(YEAR(Dec_sv1+35)=Kalendārais_gads,MONTH(Dec_sv1+35)=12),Dec_sv1+35,\"\"))","v":""}]
[null,null,{"$f":"IF(DAY(Nov_sv1)=1,IF(AND(YEAR(Nov_sv1+29)=Kalendārais_gads,MONTH(Nov_sv1+29)=11),Nov_sv1+29,\"\"),IF(AND(YEAR(Nov_sv1+36)=Kalendārais_gads,MONTH(Nov_sv1+36)=11),Nov_sv1+36,\"\"))","v":""},{"$f":"IF(DAY(Nov_sv1)=1,IF(AND(YEAR(Nov_sv1+30)=Kalendārais_gads,MONTH(Nov_sv1+30)=11),Nov_sv1+30,\"\"),IF(AND(YEAR(Nov_sv1+37)=Kalendārais_gads,MONTH(Nov_sv1+37)=11),Nov_sv1+37,\"\"))","v":""},{"$f":"IF(DAY(Nov_sv1)=1,IF(AND(YEAR(Nov_sv1+31)=Kalendārais_gads,MONTH(Nov_sv1+31)=11),Nov_sv1+31,\"\"),IF(AND(YEAR(Nov_sv1+38)=Kalendārais_gads,MONTH(Nov_sv1+38)=11),Nov_sv1+38,\"\"))","v":""},{"$f":"IF(DAY(Nov_sv1)=1,IF(AND(YEAR(Nov_sv1+32)=Kalendārais_gads,MONTH(Nov_sv1+32)=11),Nov_sv1+32,\"\"),IF(AND(YEAR(Nov_sv1+39)=Kalendārais_gads,MONTH(Nov_sv1+39)=11),Nov_sv1+39,\"\"))","v":""},{"$f":"IF(DAY(Nov_sv1)=1,IF(AND(YEAR(Nov_sv1+33)=Kalendārais_gads,MONTH(Nov_sv1+33)=11),Nov_sv1+33,\"\"),IF(AND(YEAR(Nov_sv1+40)=Kalendārais_gads,MONTH(Nov_sv1+40)=11),Nov_sv1+40,\"\"))","v":""},{"$f":"IF(DAY(Nov_sv1)=1,IF(AND(YEAR(Nov_sv1+34)=Kalendārais_gads,MONTH(Nov_sv1+34)=11),Nov_sv1+34,\"\"),IF(AND(YEAR(Nov_sv1+41)=Kalendārais_gads,MONTH(Nov_sv1+41)=11),Nov_sv1+41,\"\"))","v":""},{"$f":"IF(DAY(Nov_sv1)=1,IF(AND(YEAR(Nov_sv1+35)=Kalendārais_gads,MONTH(Nov_sv1+35)=11),Nov_sv1+35,\"\"),IF(AND(YEAR(Nov_sv1+42)=Kalendārais_gads,MONTH(Nov_sv1+42)=11),Nov_sv1+42,\"\"))","v":""},null,{"$f":"IF(DAY(Dec_sv1)=1,IF(AND(YEAR(Dec_sv1+29)=Kalendārais_gads,MONTH(Dec_sv1+29)=12),Dec_sv1+29,\"\"),IF(AND(YEAR(Dec_sv1+36)=Kalendārais_gads,MONTH(Dec_sv1+36)=12),Dec_sv1+36,\"\"))","v":""},{"$f":"IF(DAY(Dec_sv1)=1,IF(AND(YEAR(Dec_sv1+30)=Kalendārais_gads,MONTH(Dec_sv1+30)=12),Dec_sv1+30,\"\"),IF(AND(YEAR(Dec_sv1+37)=Kalendārais_gads,MONTH(Dec_sv1+37)=12),Dec_sv1+37,\"\"))","v":""},{"$f":"IF(DAY(Dec_sv1)=1,IF(AND(YEAR(Dec_sv1+31)=Kalendārais_gads,MONTH(Dec_sv1+31)=12),Dec_sv1+31,\"\"),IF(AND(YEAR(Dec_sv1+38)=Kalendārais_gads,MONTH(Dec_sv1+38)=12),Dec_sv1+38,\"\"))","v":""},{"$f":"IF(DAY(Dec_sv1)=1,IF(AND(YEAR(Dec_sv1+32)=Kalendārais_gads,MONTH(Dec_sv1+32)=12),Dec_sv1+32,\"\"),IF(AND(YEAR(Dec_sv1+39)=Kalendārais_gads,MONTH(Dec_sv1+39)=12),Dec_sv1+39,\"\"))","v":""},{"$f":"IF(DAY(Dec_sv1)=1,IF(AND(YEAR(Dec_sv1+33)=Kalendārais_gads,MONTH(Dec_sv1+33)=12),Dec_sv1+33,\"\"),IF(AND(YEAR(Dec_sv1+40)=Kalendārais_gads,MONTH(Dec_sv1+40)=12),Dec_sv1+40,\"\"))","v":""},{"$f":"IF(DAY(Dec_sv1)=1,IF(AND(YEAR(Dec_sv1+34)=Kalendārais_gads,MONTH(Dec_sv1+34)=12),Dec_sv1+34,\"\"),IF(AND(YEAR(Dec_sv1+41)=Kalendārais_gads,MONTH(Dec_sv1+41)=12),Dec_sv1+41,\"\"))","v":""},{"$f":"IF(DAY(Dec_sv1)=1,IF(AND(YEAR(Dec_sv1+35)=Kalendārais_gads,MONTH(Dec_sv1+35)=12),Dec_sv1+35,\"\"),IF(AND(YEAR(Dec_sv1+42)=Kalendārais_gads,MONTH(Dec_sv1+42)=12),Dec_sv1+42,\"\"))","v":""}]